Workbook

Sheet Cover Page
D1: Add company logo
N2: Version 23.4a (for incinerators) - 15/11/2023
N4: Note that there is another version of this template available for co-incinerators
B8: Add photo
N13: Notes:
N14: This template may require adjustments by individual operators to meet specific reporting requirements as defined in the site Permit(s)
B29: Annual Performance Report 2023
B31: Permit EPR/GP3433GH
B33: Cornwall Energy Recovery Centre
B37: SUEZ Recycling and Recovery UK Ltd
B39: Year: | C39: 2023
B41: Address: | C41: St Dennis, St Austell, Cornwall, PL26 8DY
B43: Tel: | C43: 01726 824488
B45: Email: | C45: enquiries.uk@suez.com
B47: Prepared by: | C47: Richard Watkins | F47: Position: | G47: Environment Manager
C48: Allan Chapman | G48: Senior Technical Engineer
B50: Approved by: | C50: Tony Burge | F50: Position: | G50: Plant Manager
B52: Version: | C52: 1
B54: Issue Date: | C54: 2024-01-30

Sheet Contents
A1: =+'Cover Page'!$B$29 -> Annual Performance Report 2023 | E1: =+'Cover Page'!$B$33 -> Cornwall Energy Recovery Centre
A3: Contents | K3: Notes:
A4: Section | B4: Subject | H4: Page | K4: Section references and Page nos. to be inserted
B5: Facility Information | K5: Sections and Subjects may require adjustment by individual operators to meet specific reporting requirements as defined in the sites Permit(s)
B6: Operational Data
B7: Operational Summary
B8: Performance Form 1
B9: Energy Form 1
B10: Permit Compliance
B11: Improvements
B12: Public Liasion
B13: Carbon dioxide and nitrous oxide emissions
B14: Residue Quality
B15: Emissions to Water
B16: Emissions to Air (periodically monitored)
B17: Emissions to Air (continuously monitored)
B18: Hydrogen Chloride emissions
B19: Sulphur Dioxdie emsissions
B20: Oxides of Notrigen emissions
B21: Total Organic Carbon emissions
B22: Particulate Matter emissions
B23: Carbon Monoxide emissions
B24: Hydrogen fluoride emissions
B25: Ammonia emissions
A27: Version Control
A28: Section | B28: Information | H28: Date
A29: 1 | B29: Original Report | H29: 2024-01-30
A35: Distribution
A36: Copy | B36: Name, Role | H36: No.
A37: 1 | B37: Mary Rees - Environment Agency Regulatory Officer | H37: 1
A38: 2 | B38: Tony Burge - SUEZ Plant Manager | H38: 1
A39: 3 | B39: Lisa Thompson - SUEZ Community Liaison Manager | H39: 1
A40: 4 | B40: Samantha Edge - SUEZ Commercial Contracts Manager | H40: 1
A45: This report is required under the Industrial Emissions Directive’s Article 55(2) requirements on reporting and public information on waste incineration plants and co-incineration plants, which require the operator to produce an annual report on the functioning and monitoring of the plant and make it available to the public.

Sheet Facility Info
A1: =+'Cover Page'!$B$29 -> Annual Performance Report 2023 | E1: =+'Cover Page'!$B$33 -> Cornwall Energy Recovery Centre
A3: Plant Description and Design | K3: Notes:
P4: Include summary of key processes and procedures such as (but not limited to); waste reception, control rooms, grate, bed and bolier, energy & heat generation, cooling systems, residue management, emission controls, health and safety systems, maintenance
A5: This non-hazardous waste incinerator operates 24/7 and the environmental permit allows it to process up to 240,000 tonnes of municipal waste and commercial/Industrial waste. The plant has two furnace lines and the heat produced by waste incineration is used to raise superheated steam which generates approximately 188,000 MWh/annum of electricity. Activities associated with the incineration are receipt and storage of municipal waste and commercial/industrial waste, production of steam and electricity, abatement of flue gas and handling of Incinerator Bottom Ash (IBA) and Air Pollution Control Residue (APCR). The data included within this report corresponds to the following period: 1st January 2023 to 31st December 2023. | K5: Include summary of plant design, design capacity, no. of combustion lines, electrical and heat capacity and any other general information that descibes the facility, its location and purpose
A20: Summary of Operational Processes and Procedures
A22: Incoming waste is delivered to site by refuse collection trucks. It is weighed in and delivered into the tipping hall. TIPPING HALL - A large tipping hall allows for refuse collection trucks to manoeuvre and tip waste safely. Air needed for combustion is drawn into the furnace from here so that negative pressure is maintained in order to avoid odour and dust escaping the building. BUNKER - Waste vehicles reverse to a wheel stop and tip their loads into a large concrete bunker. Mixing of waste occurs as the cranes driver sorts the waste looking for unsuitable material to be removed, and to improve the homogeneity of the incinerator feedstock. CONTROL ROOM - The plant’s control room centralises the operation of all equipment, including the grab cranes used to mix and load waste into a hopper that feeds the furnace. All on-site functions are monitored automatically and manually. Its systems verify in real time that equipment is functioning properly, continuously monitor the combustion gas, and maximise the efficiency of the entire ERC process. GRATE AND BOILER - Waste is lifted into the charging hoppers by the crane. From here it falls into the furnace-charging chute and then is introduced onto the grate system by hydraulic feeders for incineration. Auxiliary burners can be used to help maintain the temperature above 850°C if required. The thermal energy released from the incineration of waste is used to convert water to super-heated steam along a boiler composed of 4 passes. At high pressure, this steam drives a turbine to generate electricity. ELECTRICITY GENERATION - Electricity is generated at 11kv, with an electric production of approximately 180,000 MWh/annum and exporting approximately 160,000 MWh/annum to the national grid. INCINERATOR BOTTOM ASH (IBA) - Ash left on the grate after incineration is carried by conveyor, after quenching, to the IBA processing facility. Up to 65,000 tonne of IBA is processed on site by the removal of ferrous and non-ferrous metal, stabilised and separated into fraction sizes of IBA prior to the export from site of the processed IBA aggregate and metals for re-use. AIR-COOLED CONDENSERS - After exiting the turbine, the steam is cooled and condensed back into water through air condensers. This recovered water is treated and reused in the boilers to produce more steam. EMISSION CONTROL - The gases from the furnace are subject to a rigorous cleaning process involving ammonia as selective non catalytic reduction (SNCR), lime and active carbon injections. This removes oxides of nitrogen, acidic gases, dioxins, and heavy metals from the flue gas stream. AIR POLLUTION CONTROL RESIDUE (APCR) - The cleaned gas passes through fine-fabric bag filters to remove solid particles before it is emitted through the stack. The resultant APCR residue, or fly-ash, contains particles from the incineration process, lime used in the flue gas treatment, salts and carbon dust. It is stored in a sealed silo until it is taken away for recycling in tankers. EMISSIONS MONITORING - As they pass through the stack, the residual flue gases from the process are continuously monitored before release. This data is relayed automatically to the control room.

Sheet Operational Data
A1: =+'Cover Page'!$B$29 -> Annual Performance Report 2023 | E1: =+'Cover Page'!$B$33 -> Cornwall Energy Recovery Centre
A3: Operational Data
A4: Plant Size | B4: 240000 | D4: tonnes pa | E4: 86 | F4: MWth | G4: 24 | H4: MWe | J4: Notes:
A5: No. of combustion lines | B5: 2 | D5: No. of Turbines: | F5: 1 | J5: * - RDF to include SRF
J6: ** - Combusted tonnage = tonnes delivered in period + (tonnes in bunker at start of period – tonnes in bunker at end of period), or equivalent calculation depending on plant type
A7: Waste types received | B7: Unit | C7: Q1 | D7: Q2 | E7: Q3 | F7: Q4 | G7: Year Total | H7: %
A8: Household / Local Authority | B8: tonnes | C8: 39365 | D8: 35369 | E8: 41748 | F8: 39667 | G8: =SUM(C8:F8) -> 156149 | H8: =IF(G8>0,G8/$G$18,"-") -> 0.6413980637
A9: Commercial & Industrial | C9: 27361 | D9: 11470 | E9: 21648 | F9: 26823 | G9: =SUM(C9:F9) -> 87302 | H9: 0.3586019363 | J9: *** - CHP plants only
A10: Hazardous | G10: 0 | H10: - | J10: **** Availability Definition: 'the availability of a line is to be calculated by the number of hours the line reported Continuously Monitored emission levels to the Regulator through the calendar year divided by the total number of hours in that year. The overall plant availability is calculated as the Mean of all lines in the plant. For clarity this includes periods of abnormal operation.' Rationale: The primary function of an Energy from Waste facility is the disposal of waste. It follows therefore that the availability of a plant is determined by the period of time a facility spends undertaking this activity.
A11: Clinical | G11: 0 | H11: -
A12: Waste wood (biomass) | G12: 0 | H12: -
A13: Refuse Derived Fuel * - H'hold/LA | G13: =SUM(C13:F13) -> 0 | H13: -
A14: Refuse Derived Fuel * - C&I | G14: 0 | H14: -
A15: Other [Please specify] | G15: 0 | H15: -
A16: Other [Please specify] | G16: 0 | H16: -
A17: Other [Please specify] | G17: 0 | H17: -
A18: Total waste received | C18: =SUM(C8:C17) -> 66726 | D18: =SUM(D8:D17) -> 46839 | E18: =SUM(E8:E17) -> 63396 | F18: =SUM(F8:F17) -> 66490 | G18: 243451
A19: Rejected Waste | D19: 14 | G19: =SUM(C19:F19) -> 14 | H19: =IF(G19>0,G19/$G$18,"-") -> 5.750643867e-05
A20: Unprocessed waste transferred out | C20: 11 | D20: 4 | E20: 15 | F20: 3 | G20: =SUM(C20:F20) -> 33 | H20: =IF(G20>0,G20/$G$18,"-") -> 0.0001355508911
A21: Total waste combusted ** | C21: 65490 | D21: 45971 | E21: 62222 | F21: 65258 | G21: =SUM(C21:F21) -> 238941
J22: Password for protected cells A password has been set to prevent accidental editing of cells with formulae. If you still need to make an edit for some reason then the password = 1234
A23: Energy Usage / Export | B23: Unit | C23: Q1 | D23: Q2 | E23: Q3 | F23: Q4 | G23: Year Total | H23: KWh/te
A24: Power Generated | B24: MWh | C24: 47767 | D24: 32520 | E24: 46485 | F24: 47459 | G24: =SUM(C24:F24) -> 174231 | H24: =IF(G24>0,G24*1000/$G$21,"-") -> 729.1800068
A25: Power Exported | C25: 42824 | D25: 28936 | E25: 42113 | F25: 42475 | G25: =SUM(C25:F25) -> 156348 | H25: =IF(G25>0,G25*1000/$G$21,"-") -> 654.3372632
A26: Power Used on site | C26: =(C24+C27)-C25 -> 4943 | D26: =(D24+D27)-D25 -> 3791 | E26: 4372 | F26: 4988 | G26: =SUM(C26:F26) -> 18094 | H26: =IF(G26>0,G26*1000/$G$21,"-") -> 75.72580679
A27: Power Imported | D27: 207 | F27: 4 | G27: 211 | H27: =IF(G27>0,G27*1000/$G$21,"-") -> 0.883063183
A28: Parasitic Load | B28: % | C28: =IF(C24>0,1-C25/(C24+C27),"-") -> 0.103481483 | D28: =IF(D24>0,1-D25/(D24+D27),"-") -> 0.1158370764 | E28: =IF(E24>0,1-E25/(E24+E27),"-") -> 0.09405184468 | F28: =IF(F24>0,1-F25/(F24+F27),"-") -> 0.1050923878 | G28: =IF(G24>0,1-G25/(G24+G27),"-") -> 0.1037250204
A29: Thermal Energy Produced *** | B29: MWh | G29: =SUM(C29:F29) -> 0 | H29: =IF(G29>0,G29*1000/$G$21,"-") -> -
A30: Thermal Energy Exported *** | G30: 0 | H30: =IF(G30>0,G30*1000/$G$21,"-") -> -
A31: R1 value (if applicable) | B31: R1
A33: Waste Disposal & Recovery | B33: Unit | C33: Q1 | D33: Q2 | E33: Q3 | F33: Q4 | G33: Year Total | H33: % inputs
A34: APC Residues - produced | B34: tonnes | C34: 1311 | D34: 1110 | E34: 1205 | F34: 1404 | G34: =SUM(C34:F34) -> 5030 | H34: =IF(G34>0,G34/$G$21,"-") -> 0.02105122185
A35: IBA - produced | C35: 8576 | D35: 7801 | E35: 12029 | F35: 10067 | G35: 38473 | H35: =IF(G35>0,G35/$G$21,"-") -> 0.1610146438
A36: Metals recycling | C36: 2220 | D36: 1244 | E36: 1907 | F36: 2108 | G36: =SUM(C36:F36) -> 7479 | H36: 0.03130061396
A37: Other | C37: 0 | D37: 0 | E37: 0 | F37: 0 | G37: =SUM(C37:F37) -> 0 | H37: -
A38: Other | C38: 0 | D38: 0 | E38: 0 | F38: 0 | G38: 0 | H38: -
A39: Other | C39: 0 | D39: 0 | E39: 0 | F39: 0 | G39: 0 | H39: -
A41: Raw Material Usage | B41: Unit | C41: Q1 | D41: Q2 | E41: Q3 | F41: Q4 | G41: Year Total | H41: kg or Ltr /te
A42: Mains Water | B42: ltrs | C42: 5188000 | D42: 5050000 | E42: 5647000 | F42: 5036000 | G42: =SUM(C42:F42) -> 20921000 | H42: =IF(G42>0,G42/$G$21,"-") -> 87.55717939
A43: Other Water | B43: ltrs | G43: 0 | H43: =IF(G43>0,G43/$G$21,"-") -> -
A44: Ammonia | B44: kgs | C44: 39278 | D44: 37585 | E44: 57511 | F44: 53295 | G44: 187669 | H44: 0.7854198317
A45: Urea | B45: kgs | G45: =SUM(C45:F45) -> 0 | H45: -
A46: Activated Carbon | B46: kgs | C46: 42247 | D46: 28424 | E46: 39407 | F46: 41136 | G46: 151214 | H46: 0.6328507874
A47: Lime / hydrated lime | B47: kgs | C47: 362019 | D47: 339763 | E47: 404274 | F47: 415225 | G47: 1521281 | H47: 6.36676418
A48: Fuel oil | B48: ltrs | C48: 62597 | D48: 168590 | E48: 138069 | F48: 53452 | G48: 422708 | H48: 1.76908944
A49: Gas | B49: cuf | G49: 0
A50: Other | G50: 0
A52: Summary | B52: Line/Unit | C52: Q1 | D52: Q2 | E52: Q3 | F52: Q4 | G52: Year Total | I52: Hrs in year
A53: Availability of waste combustion by line, hrs **** | B53: 1 | C53: 2160 | D53: 1716 | E53: 2090 | F53: 2093 | G53: =SUM(C53:F53) -> 8059 | H53: =+G53/$I$53 -> 0.9199771689 | I53: 8760
B54: 2 | C54: 2060 | D54: 1534 | E54: 2031 | F54: 2190 | G54: 7815 | H54: =+G54/$I$53 -> 0.8921232877
B55: 3 | G55: 0 | H55: 0
B56: 4 | G56: 0 | H56: 0
B57: 5 | G57: =SUM(C57:F57) -> 0 | H57: 0
A58: Overall Availability, mean avg. of all lines, hrs | G58: =AVERAGE(G53:G54) -> 7937 | H58: 0.9060502283
A59: Hours of turbine operations, hrs | B59: 1 | C59: 2160 | D59: 1825.45 | E59: 2103 | F59: 2205 | G59: 8293.45 | H59: 0.9467408676
A60: Hours of turbine operations, hrs | B60: 2 | G60: 0 | H60: 0
A61: Hours of heat / steam export | G61: 0 | H61: =IF(B61>0,G60/I53,"n/a") -> n/a
A62: Net Calorific Value of waste | B62: MJ/kg | C62: 8.9 | D62: 9.3 | E62: 9.4 | F62: 9 | G62: =AVERAGE(C62:F62) -> 9.15
A63: Abnormal Events | B63: qty. | C63: 2 | D63: 3 | E63: 1 | F63: 2 | G63: 8 | H63: =IF(G63>0,"yes","no") -> yes
A64: Abnormal operation | B64: hours | C64: 1.5 | D64: 1.5 | E64: 1.5 | F64: 3 | G64: 7.5 | H64: =+(G64)/I53 -> 0.0008561643836
A65: Permit Breaches | B65: qty. | D65: 1 | F65: 1 | G65: 2 | H65: =IF(G65>0,"yes","no") -> yes

Sheet Operational Summary
A1: =+'Cover Page'!$B$29 -> Annual Performance Report 2023 | E1: =+'Cover Page'!$B$33 -> Cornwall Energy Recovery Centre
A3: Summary of Plant Operations and Maintenance during the reporting year | K3: Notes:
A5: The main annual outage of 2023 took place in April/May. The outage works consisted of the normal grit blasting of all internal furnace tubes, thickness testing and NDT. A large program of equipment overhauls was undertaken including grate and refractory inspections and repairs on both lines. During operation there has also been a significant amount of repair works carried out to the baghouses which has included re-plating of the cells and the application of a coating designed to protect the surfaces from corrosion. | K5: Include summary of key operational and/or mainteanance activity undertaken in the year, such as any major component upgrades and/or replacements
A29: Summary of Residue Handling for the reporting year
A31: All IBA produced by the EfW plant is transferred to the IBA recycling plant by conveyor, the IBA recycling plant is operated by Blue Phoenix. The IBA is non-hazardous, as confirmed by two weekly analysis of the IBA, and undergoes a mechanical separation process to remove all ferrous and non-ferrous metals leaving an IBA aggregate product. The metals are transferred to other operators for recycling and the IBA is applied to land in construction activities as a replacement for virgin (quarried) aggregate. This is in accordance with Environment Agency Regulatory Position Statement (RPS) 206 "Using unbound IBAA in construction activities". A small volume of primary aggregate is imported to the site for blending with the IBA aggrgate produced on site. Blue Phoenix have advised the total imported tonnage for 2023 is 585 tonnes. Air Pollution Control (APC) residues is the fly ash from the boiler mixed with dry sorbents such as carbon and lime in the flue gas treatment plant. The APC residue is hazardous and is therefore collected and disposed of to landfill Some additional residues may be produced during cleaning of the boiler during cleaning activities in planned maintenance outages. This boiler ash, often mixed with grit blast residues from the cleaning process, is disposed of to landfill. | K31: Include in here a summary of residue handling regimes and destinations

Sheet Perf. Form 1
A1: =+'Cover Page'!C39 -> 2023 | B1: Annual Reporting Performance Form 1
A3: =+'Cover Page'!B31 -> Permit EPR/GP3433GH | F3: Operator: | G3: SUEZ Recycling and Recovery UK Ltd
A4: Facility: | B4: =+'Cover Page'!B33:I33 -> Cornwall Energy Recovery Centre | F4: Form: | G4: Performance 1
A6: Reporting Period from: | D6: 2023-01-01 | F6: to: | G6: 2023-12-31
A8: =+A1 -> 2023 | B8: Annual Reporting of Waste Disposal and Recovery
A9: Waste Description | C9: Disposal Route(s) | E9: Disposal Tonnes | G9: Recovery Tonnes | I9: % / tonne of waste incinerated
A10: 1) Hazardous Wastes
A11: APC Residues | C11: D5 | E11: 5030 | I11: =IF((E11+G11)>0,(E11+G11)/'Operational Data'!$G$21, "-") -> 0.02105122185
A12: IBA | I12: =IF((E12+G12)>0,(E12+G12)/'Operational Data'!$G$21, "-") -> -
I13: =IF((E13+G13)>0,(E13+G13)/'Operational Data'!$G$21, "-") -> -
I14: =IF((E14+G14)>0,(E14+G14)/'Operational Data'!$G$21, "-") -> -
A15: Total Hazardous Waste | E15: =SUM(E11:F14) -> 5030 | G15: =SUM(G11:H14) -> 0 | I15: =IF((E15+G15)>0,(E15+G15)/'Operational Data'!$G$21, "-") -> 0.02105122185
A17: 2) Non-Hazardous Wastes
A18: IBA | C18: R10 | G18: 38473 | I18: =IF((E18+G18)>0,(E18+G18)/'Operational Data'!$G$21, "-") -> 0.1610146438
A19: Ferrous Metal | C19: R5 | G19: 2065 | I19: =IF((E19+G19)>0,(E19+G19)/'Operational Data'!$G$21, "-") -> 0.008642300819
A20: Non-ferrous Metal | C20: R5 | G20: 5413 | I20: =IF((E20+G20)>0,(E20+G20)/'Operational Data'!$G$21, "-") -> 0.02265412801
I21: =IF((E21+G21)>0,(E21+G21)/'Operational Data'!$G$21, "-") -> -
I22: =IF((E22+G22)>0,(E22+G22)/'Operational Data'!$G$21, "-") -> -
A23: Total Non-Hazardous Waste | E23: =SUM(E18:F22) -> 0 | G23: =SUM(G18:H22) -> 45951 | I23: =IF((E23+G23)>0,(E23+G23)/'Operational Data'!$G$21, "-") -> 0.1923110726
A24: TOTAL WASTE | E24: =+E23+E15 -> 5030 | G24: =+G23+G15 -> 45951 | I24: =IF((E24+G24)>0,(E24+G24)/'Operational Data'!$G$21, "-") -> 0.2133622945
A26: Operator’s comments :
A31: =+A1 -> 2023 | B31: Annual Reporting of Water and Other Raw Material Usage
A32: Raw Material | E32: Usage | G32: Unit | H32: Specific Useage | J32: Unit
A33: Mains Water | E33: =(+'Operational Data'!G42)/1000 -> 20921 | G33: m3 | H33: =IF(E33>0,E33/'Operational Data'!$G$21,"-") -> 0.08755717939 | J33: m3/te
A34: Total Water | E34: =(+'Operational Data'!G43+'Operational Data'!G42)/1000 -> 20921 | G34: m3 | H34: =IF(E34>0,E34/'Operational Data'!$G$21,"-") -> 0.08755717939 | J34: m3/te
A35: Urea / Ammonia | E35: =+'Operational Data'!G44 -> 187669 | G35: kg | H35: =IF(E35>0,E35/'Operational Data'!$G$21,"-") -> 0.7854198317 | J35: kg/te
A36: Activated Carbon | E36: =+'Operational Data'!G46 -> 151214 | G36: kg | H36: =IF(E36>0,E36/'Operational Data'!$G$21,"-") -> 0.6328507874 | J36: kg/te
A37: Lime / hydrated lime / Sodium Bicarb. | E37: =+'Operational Data'!G47 -> 1521281 | G37: kg | H37: =IF(E37>0,E37/'Operational Data'!$G$21,"-") -> 6.36676418 | J37: kg/te
A39: Operator’s comments :
A43: =+A31 -> 2023 | B43: Annual Reporting of other performance indicators
A44: Parameter | C44: Results by Line
C45: A1 | D45: A2 | E45: A3 | F45: A4 | G45: A5 | I45: Turbine 1 | J45: Turbine 2
A46: Operating hours for the year, hours | C46: ='Operational Data'!G53 -> 8059 | D46: ='Operational Data'!G54 -> 7815 | I46: 8293
A47: Number of periods of abnormal operation, qty. | C47: 6 | D47: 2
A48: Cumulative hours of abnormal operation for this year, hours | C48: 5 | D48: 3
A50: Operator’s comments :
A54: Signed: | B54: Richard Watkins | G54: Date: | H54: 2024-01-22

Sheet Energy Form 1
A1: =+'Cover Page'!C39 -> 2023 | B1: Annual Reporting of Energy Usage/Export
A3: =+'Cover Page'!B31 -> Permit EPR/GP3433GH | F3: Operator: | G3: ='Perf. Form 1'!G3 -> SUEZ Recycling and Recovery UK Ltd
A5: Facility: | B5: =+'Cover Page'!B33:I33 -> Cornwall Energy Recovery Centre | F5: Form: | G5: Energy 1
A7: Reporting Period from: | D7: =+'Perf. Form 1'!D6:E6 -> 2023-01-01 | F7: to: | G7: =+'Perf. Form 1'!G6:H6 -> 2023-12-31
A9: Energy Source | D9: Energy Usage | F9: Unit | G9: Specific Useage (KWh/tonne incinerated
A10: Electricity Produced | D10: =+'Operational Data'!G24 -> 174231 | F10: MWh | G10: =+'Operational Data'!H24 -> 729.1800068
A11: Electricity Imported | D11: =+'Operational Data'!G27 -> 211 | F11: MWh | G11: =+'Operational Data'!H27 -> 0.883063183
A12: Electricity Exported | D12: =+'Operational Data'!G25 -> 156348 | F12: MWh | G12: =+'Operational Data'!H25 -> 654.3372632
A13: Gas Oil | D13: =('Operational Data'!G48*(10^-6))*845 -> 357.18826 | F13: tonnes | G13: =(D13*42800*1000*(1/3600))/'Operational Data'!G21 -> 17.77246908
A14: Steam/hot water exported | D14: =+'Operational Data'!G30 -> 0 | F14: GWh | G14: =+'Operational Data'!H30 -> -
A18: Operator’s comments :
A29: Signed: | B29: Richard Watkins | G29: Date: | H29: 2024-01-22

Sheet Permit Compliance
A1: =+'Cover Page'!$B$29 -> Annual Performance Report 2023 | E1: =+'Cover Page'!$B$33 -> Cornwall Energy Recovery Centre
A3: Summary of Permit Compliance
A5: Compliance with permit limits for continuously monitored pollutants
A7: The plant met its emission limits as shown in the table below:
A8: Substance | C8: Percentage time compliant during operationNote 1 | L8: Notes:
C9: Half-hourly limit | F9: Daily limit | L9: Note 1: Please report to 2 decimal places, i.e. xx.xx% Note 2: Please provide a brief summary of each notification or non-compliance in the table (rather than just referring to notifications that were sent to the Regulator), including stating the value of measured result for any ELV exceedances.
A10: Particulates | C10: 1 | F10: 1
A11: Oxides of nitrogen | C11: 1 | F11: 1
A12: Sulphur dioxide | C12: 1 | F12: 1
A13: Carbon monoxide | C13: 99.99% 95% of 10-min averages | F13: 0.9985
A14: Total organic carbon | C14: 1 | F14: 1
A15: Hydrogen chloride | C15: 1 | F15: 1
A16: Hydrogen fluoride | C16: 1 | F16: 1
A18: Summary of any notifications or non-compliances under the permit
A19: Date | B19: Summary of notification or non-compliance [including Line/Reference]Note 2 | E19: Reason | H19: Measures taken to prevent reoccurrence
A20: 2023-02-09 | B20: Abnormal operation - elevated particulates on L1 | E20: Failed bag filter | H20: Bag filter replaced
A21: 2023-02-14 | B21: Abnormal operation - CEMS VOC data loss L1 | E21: Electrical fault | H21: Solenoid replaced
A22: 2023-05-31 | B22: Abnormal operation - elevated particulates on L1 | E22: Failed bag filter | H22: Bag filter replaced
A23: 2023-06-01 | B23: Abnormal operation - elevated particulates on L1 | E23: Failed bag filter | H23: Bag filter replaced
A24: 2023-06-07 | B24: Abnormal operation - elevated particulates on L1 | E24: Failed bag filter | H24: Bag filter replaced and APCR blockage cleared
A25: 2023-06-08 | B25: Breach of CO 95th percentile limit and daily average on L2 | E25: Line trip on start-up and combustion control issues | H25: Plant taken offline until all start-up issues resolved
A26: 2023-07-22 | B26: Abnormal operation - CEMS data loss on L2 | E26: Solenoid failure | H26: Shut down of the line and solenoid replaced
A27: 2023-11-08 | B27: Breach of IBA TOC Limit | E27: Possible lab issue | H27: Retests in progress
A28: 2023-12-27 | B28: Abnormal operation - breach of CO 95th percentile limit due to corrupted CEMS data | E28: Boiler tube leak and excess moisture in flue gasses | H28: Line shut down and boiler tubes replaced
A29: 2023-12-29 | B29: Abnormal operation - Erroneous CEMS data and data loss on L2 | E29: Solenoid failure | H29: Shut down of the line and solenoid replaced
A31: Summary of any complaints received and actions to taken to resolve them.
A32: Date | B32: Summary of complaint [including Line/Reference] | E32: Reason * | H32: Measures taken to prevent reoccurrence
A33: 2023-06-21 | B33: Resident complaint regarding orange coloured dust deposits on windows and sills. | E33: Not substantiated | H33: Complainant visited by Community Liaison Mgr.
A34: 2023-09-14 | B34: Noise and light complaints from St Dennis Parish Council from the 5th and 6th September. Noise during the shutdown and light relates to lighting around the site at night. | H34: Community Liaison Mgr working with the Parish Council to address the complaints
E35: * including whether substantiated by the operator or the EA

Sheet Improvements
A1: =+'Cover Page'!$B$29 -> Annual Performance Report 2023 | E1: =+'Cover Page'!$B$33 -> Cornwall Energy Recovery Centre
A3: Summary of Plant Improvements
A5: Summary of any efficiency improvements that have been completed within the year.
A16: Summary of any permit improvement conditions that have been completed within the year and the resulting environmental benefits.
A17: Reports were submitted on the 22/09/2023 to provide mercury and dioxins/furans data as required by permit Improvement Conditions IC2 and IC3: IC2 “The operator shall submit a report to the Environment Agency on whether waste feed to the plant can be proven to have a low and stable mercury content. The report shall have regard to BAT 4 of the BAT conclusions, be based on historic mercury emissions monitoring data and have regard to the Environment Agency Mercury Monitoring Protocol.” IC3 “The operator shall submit a report to the Environment Agency on whether Dioxins emissions to air are stable. The report shall have regard to BAT 4 of the BAT conclusions, be based on historic dioxins emissions monitoring data and have regard to the Environment Agency Dioxins Monitoring Protocol.”
A27: Summary of any changes to the plant or operating techniques which required a variation to the permit and a summary of the resulting environmental impact.
A28: An Environment Agency initiated permit variation was issued 10/11/2023 to update the permit following a statutory review of the permits in the industry sector for incineration. The opportunity was also taken to consolidate the original permit and subsequent variations. The Industrial Emissions Directive (IED) came into force on 7th January 2014 with the requirement to implement all relevant Best Available Techniques (BAT) conclusions as described in the Commission Implementing Decision. The BAT conclusions for incineration were published on 03 December 2019 in the Official Journal of the European Union (L323) following a European Union wide review of BAT, implementing decision 2017/2117/EU of 21 November 2017. The actual permit issued 10/11/2023 was a copy of the draft issued in error, the final permit is yet to be issued as of 17/01/2024.
A38: Summary of any other improvements made to the plant or planned to be made and a summary of the resulting environmental benefits.

Sheet Public Liasion
A1: =+'Cover Page'!$B$29 -> Annual Performance Report 2023 | E1: =+'Cover Page'!$B$33 -> Cornwall Energy Recovery Centre
A3: Details of Public & Stakeholder Liaison
A5: Summary of events held during the reporting year.
A6: Date | C6: Description
A7: Various dates throughout the year. | C7: We held Community Liaison Group meetings at Connon (31/1/23, 25/4/23, 3/10/23), St. Erth (8/2/23, 19/4/23 12/7/23 11/10/23), CERC (30/1/23, 24/7/23) and Hallenbeagle (22/11/23). We also welcomed 936 visitors to the CERC for tours of the facility.
A9: 9-11 June, 2023 | C9: We engaged with the public on our trade stand at the Royal Cornwall Show. The theme was "Right waste in the Right Place" with an emphasis on correct disposal of batteries.
A11: 11/03/23 and 7/10/23 | C11: Beach Clean Events held at Par Beach and Perranporth Beach. These were well attended by staff and families/friends and allowed the opportunity to engage with the public about the work we do.
A13: Throughout November and December | C13: We supported Cornwall Council's Engagement team at several WCA service change Roadshow events.
A16: List of events planned for next year
A17: Date | C17: Description
A18: Various dates to be confirmed | C18: Community Liaison Meetings will take place at Connon, St. Erth, CERC and Hallenbeagle.
A20: 7/3/24 and 22/3/24 | C20: Careers Fairs at Truro and Penwith College and other venues to be confirmed.
A22: 23/03/24 and another in October to be confirmed | C22: Beach Clean Events will be held at Seaton Beach and one other beach to be confirmed.
A24: 6-8 June, 2024 | C24: Royal Cornwall Show trade stand with waste education elements.
A26: Throughout the year - dates to be confirmed. | C26: We will be supporting Cornwall Council's Engagement team at several WCA service change Roadshow events.
A29: If you wish to be involved in the public liaison programme, please contact; Lisa Thompson (07977 941248) lisa.thompson@suez.com

Sheet CO2 N2O
A1: =+'Cover Page'!$B$29 -> Annual Performance Report 2023 | C1: =+'Cover Page'!$B$33 -> Cornwall Energy Recovery Centre
A3: Carbon dioxide emissions and biogenic content of waste inputs | F3: Notes:
A5: Carbon dioxide emissions (all types of plant)
B6: Annual mass of carbon dioxide released | C6: tonnes | D6: 235019
B7: Annual mass of carbon dioxide released per tonne of waste burned | C7: t CO2 / t waste | D7: =D6/'Operational Data'!G21 -> 0.9835859061
B8: Annual mass of carbon dioxide released per MWh of energy exported | C8: t CO2 / MWh export | D8: =D6/'Operational Data'!G25 -> 1.503178806
B9: Description of how annual carbon dioxide mass emission has been calculated. See Note 1 | C9: Monthly average CO2 values from the CEMS(%) with density value applied x monthly average flow rate from the CEMS x operational hours. | F9: Note 1: Where available, data from CO2 CEMS should be used. Otherwise, only where no CEMS data is available, a suitable emissions factor should be used based on the tonnage of waste burned e.g.0.942 tCO2/t waste as per Tolvik report 2022, or other justified emissions factor - refer to embedded Environment Agency guidance note above or updated version for suitable descriptive text.
A10: Nitrous oxide emissions (only plants which use ammonia or urea to abate NOx emissions)
B11: Annual mass emissions of nitrous oxide | C11: tonnes N2O | D11: 1.03
B12: Description of how annual nitrous oxide mass emission has been calculated See Note 2 | C12: CEMS monthly average N2O (mg/m3) x CEMS monthly average flow rate x monthly operational hours. | F12: Note 2: Where available, data from N2O CEMS should be used. If no CEMS data is available, from periodic monitoring. Otherwise, a suitable emissions factor should be used based on the tonnage of waste burned e.g. 0.0981 kgN20/t waste as per 2021 Pollution Inventory data for plants with urea-based SNCR - refer to embedded Environment Agency guidance note above or updated version for suitable descriptive text.
A13: Total annual carbon dioxide and nitrous oxide emissions. See Note 3. | C13: tonnes CO2e | D13: =(D11*298)+D6 -> 235325.94 | F13: Note 3: Total annual carbon dioxide and nitrous oxide emissions reported as carbon dioxide equivalent where 1 tonne nitrous oxide is equivalent to 298 tonne carbon dioxide
A14: Biogenic CO2 emissions (See Note 4) | F14: Note 4: Only plants combusting residual municipal waste, refuse derived fuel or solid recovered fuel
B15: Percentage of total carbon dioxide emissions arising from biogenic waste | C15: % | D15: 0.528
B16: No. of measurements undertaken | C16: Number | D16: 1
B17: Description of how percentage biogenic carbon dioxide emissions have been measured or calculated. See Note 5 | C17: Calculated from the annual waste analysis, biogenic fraction for each waste type taken from DEFRA 2014 energy recovery for residual waste, a carbon based modelling approach. | F17: Note 5: Examples include direct measurement via C14 method or BIOMA software - refer to embedded Environment Agency guidance note above or updated version for suitable descriptive text, quoting standards where relevant. Otherwise, as an approximation (and in lieu of any more accurate metrics which may be developed in future), the measured or estimated biogenic fraction by net calorific value can be assumed to be the same as the biogenic CO2 fraction of the total CO2 emissions from the plant.
A18: Biogenic fraction of waste feedstock (See Note 4)
B19: Yearly average biogenic percentage of the waste by net calorific value (NCV) | C19: % | D19: 0.528
B20: If sampling undertaken, no. of samples used to ascertain average biogenic % above | C20: Number | D20: 1
B21: Description of how biogenic percentage (by NCV) has been calculated or estimated. See Note 6 | C21: See above for biogenic CO2 emissions calculation. | F21: Note 6: Where available, data from waste sampling should be used; otherwise, an estimated figure with justification can be used, or a figure assumed on the basis of a national average e.g. 2017 WRAP data for residual waste of 51.8% biogenic energy content - refer to embedded Environment Agency guidance note above or updated version for suitable descriptive text, quoting standards where relevant.
B23: Comments:

Sheet Residue Quality
A1: =+'Cover Page'!$B$29 -> Annual Performance Report 2023 | E1: =+'Cover Page'!$B$33 -> Cornwall Energy Recovery Centre
A3: Residue Quality Monitoring Requirements
A5: Summary of monitoring undertaken and compliance
A6: The samples for the quarterly IBA analysis were taken on the 15/02/2023, the 10/05/2023, the 16/08/2023 and the 08/11/2023.
A8: Blue Phoenix have advised that a total of 585 tonnes of primary aggregate (granite) was imported to the site during 2023 for blending with the IBA aggregate produced on site.
A13: Commentary on any specific events
A14: Date & Event | C14: Description
A15: 2023-11-08 | C15: The IBA TOC result provided for this sample was 3.17% which is above the 3% limit value. Application of the labs uncertainty of measurement could give a compliant result but the original sample is being retested, and additional samples have been provided to the lab for further TOC analysis. The results are still pending currently so the investigation is ongoing, there were no operational issues at the time of sampling likely to have affected the combustion process.
A25: Residue Quality Monitoring Results
A26: Parameter (unit) | C26: Limit | D26: Normal Operation
D27: Bottom ash | F27: APC Residues
A28: Loss on Ignition (average %) | C28: <5% | D28: N/A
A29: Total Organic Carbon (average %) | C29: <3% | D29: 2.76
A30: No. of Assessments Undertaken | C30: --- | D30: 4 | F30: 4
A31: No. of Hazardous Results | C31: --- | D31: 0
A33: Comments :
A34: Feb 2022 TOC = 2.58% May 2022 TOC = 2.8% Aug 2022 TOC = 2.5% Nov 2022 TOC = 3.17% (further analysis ongoing)

Sheet Water
A1: =+'Cover Page'!$B$29 -> Annual Performance Report 2023 | E1: =+'Cover Page'!$B$33 -> Cornwall Energy Recovery Centre
A3: Emissions to Water
A5: Summary of monitoring undertaken and compliance
A6: There are no discharges to water that require monitoring under the Environmental Permit. There are two discharges to water from package sewage treatment plants serving the EfW and IBA plant welfare facilities but these are regulated under separate Environmental Permits. There are no discharges to sewer from the site.
A13: Commentary on any specific events
A14: Date & Event | C14: Description
A22: Emissions to Water / Sewer
A23: Parameter | D23: Monitoring Frequency | F23: Limit | G23: Target | H23: Max. | I23: Average

Sheet Air (periodic)
A1: =+'Cover Page'!$B$29 -> Annual Performance Report 2023 | E1: =+'Cover Page'!$B$33 -> Cornwall Energy Recovery Centre
A3: Emissions to Air (periodically monitored)
A5: Summary of monitoring undertaken, standards used and compliance | K5: Notes:
A6: The compliance monitoring visits were carried out during April and September 2023. There were no non-compliances identified during either visit. | K6: Template may require adjustment for any bespoke monitoring requirements of permit - please also check that all default ELV values, reference periods and the stated oxygen reference value match those for your plant, and edit if necessary!
A9: Results of emissions to air that are periodically monitored - oxygen reference 6%
A10: Substance | C10: Ref. Period | D10: Emission Limit Value* | F10: Average | K10: User to add additional tables as necessary, depending on whether quarterly or bi-annual reporting is required for the compliance year
F11: A1 | G11: A2 | H11: A3 | I11: A4 | J11: A5
A12: Hydrogen fluoride | C12: 1 hr | D12: 2 mg/m3 | F12: 0.038 | G12: 0.0365
A13: Cd and Th and their compounds | C13: 0.5-8hrs | D13: 0.05 mg/m3 | F13: 0.0013 | G13: 0.00155
A14: Hg and its compounds | C14: 0.5-8hrs | D14: 0.05 mg/m3 | F14: 0.0017 | G14: 0.00835 | K14: * Denotes limits that were in force until 2 December 2023; from 3 December 2023 the following new limits applied (those not listed remained unchanged):
A15: Sb, As, Pb, Cr, Co, Cu, Mn, Ni, V and their compounds | C15: 0.5-8hrs | D15: 0.5 mg/m3 | F15: 0.15535 | G15: 0.0295
A16: Dioxins & Furans (I-TEQ) | C16: 6-8hrs | D16: 0.1 ng/m3 | F16: 0.0078 | G16: 0.0463 | K16: Substance | L16: Reference Period | M16: Emission Limit Value
A17: PCBs (WHO-TEQ Humans / Mammals) | C17: 6-8hrs | D17: None set ng/m3 | F17: 0.000367 | G17: 0.0041235
A18: PCBs (WHO-TEQ Fish) | C18: 6-8hrs | D18: None set ng/m3 | F18: 1.55e-05 | G18: 0.0001725 | K18: Hydrogen fluoride | L18: Average of three consecutive measurements of at least 30 minutes each | M18: 1 mg/m3
A19: PCBs (WHO-TEQ Birds) | C19: 6-8hrs | D19: None set ng/m3 | F19: 0.00078 | G19: 0.0051615 | K19: Cd and Th and their compounds | L19: Average of three consecutive measurements of at least 30 minutes each | M19: 0.02 mg/m3
A20: Dioxins & Furans (WHO-TEQ Humans / Mammals) | C20: 6-8hrs | D20: None set ng/m3 | F20: 0.00745 | G20: 0.04725 | K20: Hg and its compounds | L20: Average of three consecutive measurements of at least 30 minutes each | M20: 0.02 mg/m3
A21: Dioxins & Furans (WHO-TEQ Fish) | C21: 6-8hrs | D21: None set ng/m3 | F21: 0.0084 | G21: 0.054 | K21: Sb, As, Pb, Cr, Co, Cu, Mn, Ni, V and their compounds | L21: Average of three consecutive measurements of at least 30 minutes each | M21: 0.3 mg/m3
A22: Dioxins & Furans (WHO-TEQ Birds) | C22: 6-8hrs | D22: None set ng/m3 | F22: 0.01275 | G22: 0.0753 | K22: Dioxins & Furans (I-TEQ) | L22: 6-8hrs | M22: 0.06 ng/m3
A23: Anthanthrene | C23: 6-8hrs | D23: None set µg/m3 | F23: 0.0022 | G23: 0.00155
A24: Benzo(a)anthracene | C24: 6-8hrs | D24: None set µg/m3 | F24: 0.0014 | G24: 0.0016
A25: Benzo(a)pyrene | C25: 6-8hrs | D25: None set µg/m3 | F25: 0.0045 | G25: 0.00155
A26: Benzo(b)fluoranthene | C26: 6-8hrs | D26: None set µg/m3 | F26: 0.00325 | G26: 0.00255
A27: Benzo(b)naptho(2,1-d) thiophene | C27: 6-8hrs | D27: None set µg/m3 | F27: 0.00135 | G27: 0.00155
A28: Benzo(c)phenanthrene | C28: 6-8hrs | D28: None set µg/m3 | F28: 0.00135 | G28: 0.00155
A29: Benzo(ghi)perylene | C29: 6-8hrs | D29: None set µg/m3 | F29: 0.0094 | G29: 0.00155
A30: Benzo(k)fluoranthene | C30: 6-8hrs | D30: None set µg/m3 | F30: 0.0015 | G30: 0.00155
A31: Cholanthrene | C31: 6-8hrs | D31: None set µg/m3 | F31: 0.00135 | G31: 0.00155
A32: Chrysene | C32: 6-8hrs | D32: None set µg/m3 | F32: 0.0019 | G32: 0.00365
A33: Cyclopenta(cd)pyrene | C33: 6-8hrs | D33: None set µg/m3 | F33: 0.0067 | G33: 0.00155
A34: Dibenzo(ai)pyrene | C34: 6-8hrs | D34: None set µg/m3 | F34: 0.00135 | G34: 0.00155
A35: Dibenzo(ah)anthracene | C35: 6-8hrs | D35: None set µg/m3 | F35: 0.00135 | G35: 0.00155
A36: Fluoranthene | C36: 6-8hrs | D36: None set µg/m3 | F36: 0.0348 | G36: 0.0109
A37: Indeno(123-cd) pyrene | C37: 6-8hrs | D37: None set µg/m3 | F37: 0.00335 | G37: 0.00155
A38: Naphthalene | C38: 6-8hrs | D38: None set µg/m3 | F38: 1.11475 | G38: 1.17245
A39: Comments :
A40: The average result is calculated from the reported values for the H1 and H2 compliance monitoring campaigns. Where results are reported at the laboratory limit of detection the < qualifier is removed for calculation of the average emission as a conservative measure. Where the average has been calculated in this way the reported value is highlighted bold.

Sheet Air (CEMS)
A1: =+'Cover Page'!$B$29 -> Annual Performance Report 2023 | I1: =+'Cover Page'!$B$33 -> Cornwall Energy Recovery Centre
A3: Emissions to Air (continously monitored)
N4: Notes:
A5: Summary of monitoring undertaken, standards used and compliance | N5: Template may require adjustment for any bespoke monitoring requirements of permit
A6: The CEMS set up comprises a multigas analyser, FID analyser and then the oxygen probe for extractive sampling where flue gases are drawn continuously via a heated line to the analysers in the CEMS room for each incineration line. In situ sampling i.e. where the probes are installed directly into the flue gas flow in the stack is for the dust probes only. The set up for the duty analysers is mirrored by the standby analysers. The standby analysers can be switched between incineration Lines 1 and 2 as required. Continuous monitoring is provided by the CEMS as required by the permit. The CEMS are installed in accordance with EN14181 and relevant Environment Agency guidance. | N6: Please check that all default ELV values match those for your plant and edit if necessary!
N7: Report to 1 decimal place
A9: Results of emissions to air that are continuously monitored (maximum and average values for each line) - oxygen reference 11%
A10: Substance | B10: Reference Period | C10: Emission Limit Value | D10: A1 | F10: A2 | H10: A3 | J10: A4 | L10: A5
D11: Max. | E11: Avg. | F11: Max. | G11: Avg. | H11: Max. | I11: Avg. | J11: Max. | K11: Avg. | L11: Max. | M11: Avg. | N11: ** Denotes limits that were in force until 2 December 2023; from 3 December 2023 the following new limits applied (those not listed remained unchanged):
A12: Oxides of nitrogen | B12: Daily mean | C12: 200 mg/m3 | D12: =NOx!$O$19 -> 152 | E12: =NOx!$N$19 -> 130.9416667 | F12: =NOx!$O$34 -> 151 | G12: =NOx!$N$34 -> 141.0166667
B13: ½ hourly mean | C13: 400 mg/m3 | D13: =NOx!$M$19 -> 184 | E13: =NOx!$L$19 -> 130.45 | F13: =NOx!$M$34 -> 204 | G13: =NOx!$L$34 -> 140.1083333 | N13: Substance | O13: Reference Period | P13: Emission Limit Value
A14: Particulates | B14: Daily mean | C14: 10 mg/m3 | D14: =Particulates!$O$19 -> 4.4 | E14: =Particulates!$N$19 -> 0.9183333333 | F14: =Particulates!$O$34 -> 3.5 | G14: =Particulates!$N$34 -> 0.3716666667
B15: ½ hourly mean | C15: 30 mg/m3 | D15: =Particulates!$M$19 -> 64.3 | E15: =Particulates!$L$19 -> 0.925 | F15: =Particulates!$M$34 -> 24.4 | G15: =Particulates!$L$34 -> 0.3833333333 | N15: Oxides of nitrogen | O15: Daily mean | P15: 180 mg/m3
A16: Total Organic Carbon | B16: Daily mean | C16: 10 mg/m3 | D16: =TOC!$O$19 -> 0.8 | E16: =TOC!$N$19 -> 0.3808333333 | F16: =TOC!$O$34 -> 1.9 | G16: =TOC!$N$34 -> 0.3066666667 | N16: Particulates | O16: Daily mean | P16: 5 mg/m3
B17: ½ hourly mean | C17: 20 mg/m3 | D17: =TOC!$M$19 -> 6.6 | E17: =TOC!$L$19 -> 0.3916666667 | F17: =TOC!$M$34 -> 17.7 | G17: =TOC!$L$34 -> 0.3416666667 | N17: Hydrogen chloride | O17: Daily mean | P17: 8 mg/m3
A18: Hydrogen chloride | B18: Daily mean | C18: 10 mg/m3 | D18: =HCl!$O$19 -> 10 | E18: =HCl!$N$19 -> 7.85 | F18: =HCl!$O$34 -> 9 | G18: =HCl!$N$34 -> 7.908333333 | N18: Sulphur dioxide | O18: Daily mean | P18: 40 mg/m3
B19: ½ hourly mean | C19: 60 mg/m3 | D19: =HCl!$M$19 -> 51 | E19: =HCl!$L$19 -> 7.833333333 | F19: =HCl!$M$34 -> 32 | G19: =HCl!$L$34 -> 7.75 | N19: Ammonia | O19: Daily mean | P19: 15 mg/m3
A20: Sulphur dioxide | B20: Daily mean | C20: 50 mg/m3 | D20: ='SO2'!$O$19 -> 20 | E20: ='SO2'!$N$19 -> 10.75 | F20: ='SO2'!$O$34 -> 20 | G20: ='SO2'!$N$34 -> 10.85
B21: ½ hourly mean | C21: 200 mg/m3 | D21: ='SO2'!$M$19 -> 154 | E21: ='SO2'!$L$19 -> 10.83333333 | F21: ='SO2'!$M$34 -> 167 | G21: ='SO2'!$L$34 -> 10.91666667
A22: Carbon monoxide | B22: Daily mean | C22: 50 mg/m3 | D22: ='CO 95% 10 min'!Q19 -> 9.8 | E22: ='CO 95% 10 min'!P19 -> 2.026666667 | F22: ='CO 95% 10 min'!Q34 -> 13.9 | G22: ='CO 95% 10 min'!P34 -> 4.066666667
B23: 95%ile 10-min avg | C23: 150 mg/m3 | D23: =MAX('CO 95% 10 min'!M7:M18) -> 9.5 | E23: =AVERAGE('CO 95% 10 min'!M7:M18) -> 5.1 | F23: =MAX('CO 95% 10 min'!M22:M33) -> 32 | G23: =AVERAGE('CO 95% 10 min'!M22:M33) -> 8.233333333
A24: Hydrogen Fluoride | B24: Daily mean | C24: 1 mg/m3 | D24: =HF!O19 -> 0.2 | E24: =HF!N19 -> 0 | F24: =HF!M19 -> 1.8 | G24: =HF!L19 -> 0
B25: ½ hourly mean | C25: 4 mg/m3 | D25: =HF!O34 -> 0.4 | E25: =HF!N34 -> 0.004666666667 | F25: =HF!M34 -> 0.8 | G25: =HF!L34 -> 0
A26: Ammonia | B26: Daily mean | C26: 10 mg/m3 | D26: ='NH3'!$O$19 -> 0.4 | E26: ='NH3'!$N$19 -> 0.007166666667 | F26: ='NH3'!$O$34 -> 0.1 | G26: ='NH3'!$N$34 -> 0
A27: Comments :
A28: The BREF ammonia (NH3) daily emission limit of 15mg/m3 was not applied as of the 03/12/2023 as the site already had an existing daily limit for ammonia that was lower than the proposed BREF limit.

Sheet HCl
A1: =+'Cover Page'!$B$29 -> Annual Performance Report 2023 | E1: =+'Cover Page'!$B$33 -> Cornwall Energy Recovery Centre
A3: Monitoring of Hydrogen Chloride emissions | D3: Whole Installation | G3: See Notes in Cell Q3 | J3: =+A3 -> Monitoring of Hydrogen Chloride emissions | N3: Per Combustion Line | Q3: Notes:
Q4: User to add logic to complete Whole installation, Table A5:G18. From the data in Per Combustion Line, Table J6:O79, subject to No. of lines installed
A5: mg/Nm3 | B5: 1/2 Hourly Reference Periods | E5: Daily Reference Periods
A6: =+'Cover Page'!C39 -> 2023 | B6: 1/2 hourly HCl ELV | C6: Monthly 1/2 hourly mean | D6: Highest 1/2 hourly maximum | E6: Daily HCl ELV* | F6: Monthly daily mean | G6: Highest daily maximum | J6: =+A6 -> 2023 | K6: mg/Nm3 | L6: Monthly 1/2 hourly mean | M6: Monthly 1/2 hourly maximum | N6: Monthly daily mean | O6: Monthly daily maximum
A7: Jan | B7: 60 | C7: =AVERAGE(L7,L22,L37,L52,L67) -> 8 | D7: =MAX(M7,M22,M37,M52,M67) -> 14 | E7: 10 | F7: =AVERAGE(N7,N22,N37,N52,N67) -> 8 | G7: =MAX(O7,O22,O37,O52,O67) -> 9 | J7: A1 | K7: Jan | L7: 8 | M7: 14 | N7: 8.4 | O7: 9
A8: Feb | B8: 60 | C8: =AVERAGE(L8,L23,L38,L53,L68) -> 8.5 | D8: =MAX(M8,M23,M38,M53,M68) -> 13 | E8: 10 | F8: =AVERAGE(N8,N23,N38,N53,N68) -> 8.6 | G8: =MAX(O8,O23,O38,O53,O68) -> 10 | K8: Feb | L8: 9 | M8: 13 | N8: 9 | O8: 10
A9: Mar | B9: 60 | C9: 8.5 | D9: 21 | E9: 10 | F9: 8.55 | G9: 10 | K9: Mar | L9: 9 | M9: 21 | N9: 8.7 | O9: 10 | Q9: Whole Installation table A5:G18:
A10: Apr | B10: 60 | C10: 8 | D10: 15 | E10: 10 | F10: 8.25 | G10: 9 | K10: Apr | L10: 8 | M10: 13 | N10: 8 | O10: 8 | Q10: Mean: for 1/2 hourly and daily periods calculate mean of values across all operational combustion lines for the month
A11: May | B11: 60 | C11: 7.5 | D11: 35 | E11: 10 | F11: 7.9 | G11: 10 | K11: May | L11: 7 | M11: 35 | N11: 7.2 | O11: 10
A12: Jun | B12: 60 | C12: 8 | D12: 14 | E12: 10 | F12: 7.9 | G12: 9 | K12: Jun | L12: 8 | M12: 14 | N12: 7.9 | O12: 8
A13: Jul | B13: 60 | C13: 7.5 | D13: 19 | E13: 10 | F13: 7.55 | G13: 9 | K13: Jul | L13: 7 | M13: 12 | N13: 7.4 | O13: 8 | Q13: Maximum: for 1/2 hourly and daily periods use the highest value across all operational combustion lines for the month
A14: Aug | B14: 60 | C14: 8 | D14: 14 | E14: 10 | F14: 8.15 | G14: 9 | K14: Aug | L14: 8 | M14: 14 | N14: 8 | O14: 8
A15: Sep | B15: 60 | C15: 8 | D15: 13 | E15: 10 | F15: 7.95 | G15: 9 | K15: Sep | L15: 8 | M15: 13 | N15: 7.8 | O15: 8
A16: Oct | B16: 60 | C16: 8 | D16: 32 | E16: 10 | F16: 8.15 | G16: 9 | K16: Oct | L16: 8 | M16: 13 | N16: 8 | O16: 8
A17: Nov | B17: 60 | C17: 7 | D17: 51 | E17: 10 | F17: 6.85 | G17: 8 | K17: Nov | L17: 7 | M17: 51 | N17: 6.9 | O17: 8
A18: Dec | B18: 60 | C18: 6.5 | D18: 15 | E18: 8 | F18: 6.7 | G18: 7 | K18: Dec | L18: 7 | M18: 9 | N18: 6.9 | O18: 7
E19: * ELV reduced to 8 mg/Nm3 on 3 December 2023 | K19: Annual | L19: =AVERAGE(L7:L18) -> 7.833333333 | M19: =MAX(M7:M18) -> 51 | N19: =AVERAGE(N7:N18) -> 7.85 | O19: =MAX(O7:O18) -> 10
J21: =+A6 -> 2023 | K21: mg/Nm3 | L21: Monthly 1/2 hourly mean | M21: Monthly 1/2 hourly maximum | N21: Monthly daily mean | O21: Monthly daily maximum
J22: A2 | K22: Jan | L22: 8 | M22: 11 | N22: 7.6 | O22: 8
K23: Feb | L23: 8 | M23: 12 | N23: 8.2 | O23: 9
K24: Mar | L24: 8 | M24: 14 | N24: 8.4 | O24: 9
K25: Apr | L25: 8 | M25: 15 | N25: 8.5 | O25: 9
K26: May | L26: 8 | M26: 11 | N26: 8.6 | O26: 9
K27: Jun | L27: 8 | M27: 11 | N27: 7.9 | O27: 9
K28: Jul | L28: 8 | M28: 19 | N28: 7.7 | O28: 9
K29: Aug | L29: 8 | M29: 12 | N29: 8.3 | O29: 9
K30: Sep | L30: 8 | M30: 12 | N30: 8.1 | O30: 9
K31: Oct | L31: 8 | M31: 32 | N31: 8.3 | O31: 9
K32: Nov | L32: 7 | M32: 30 | N32: 6.8 | O32: 7
K33: Dec | L33: 6 | M33: 15 | N33: 6.5 | O33: 7
K34: Annual | L34: =AVERAGE(L22:L33) -> 7.75 | M34: =MAX(M22:M33) -> 32 | N34: =AVERAGE(N22:N33) -> 7.908333333 | O34: =MAX(O22:O33) -> 9
J36: =+A6 -> 2023 | K36: mg/Nm3 | L36: Monthly 1/2 hourly mean | M36: Monthly 1/2 hourly maximum | N36: Monthly daily mean | O36: Monthly daily maximum
J37: A3 | K37: Jan
K38: Feb
K39: Mar
K40: Apr
K41: May
K42: Jun
K43: Jul
K44: Aug
K45: Sep
K46: Oct
K47: Nov
A48: Comments : | K48: Dec
K49: Annual | L49: =AVERAGE(L37:L48) ->  | M49: =MAX(M37:M48) -> 0 | N49: =AVERAGE(N37:N48) ->  | O49: =MAX(O37:O48) -> 0
J51: =+A6 -> 2023 | K51: mg/Nm3 | L51: Monthly 1/2 hourly mean | M51: Monthly 1/2 hourly maximum | N51: Monthly daily mean | O51: Monthly daily maximum
J52: A4 | K52: Jan
K53: Feb
K54: Mar
K55: Apr
K56: May
K57: Jun
K58: Jul
K59: Aug
K60: Sep
K61: Oct
K62: Nov
K63: Dec
K64: Annual | L64: =AVERAGE(L52:L63) ->  | M64: =MAX(M52:M63) -> 0 | N64: =AVERAGE(N52:N63) ->  | O64: =MAX(O52:O63) -> 0
J66: =+A6 -> 2023 | K66: mg/Nm3 | L66: Monthly 1/2 hourly mean | M66: Monthly 1/2 hourly maximum | N66: Monthly daily mean | O66: Monthly daily maximum
J67: A5 | K67: Jan
K68: Feb
K69: Mar
K70: Apr
K71: May
K72: Jun
K73: Jul
K74: Aug
K75: Sep
K76: Oct
K77: Nov
K78: Dec
K79: Annual | L79: =AVERAGE(L67:L78) ->  | M79: =MAX(M67:M78) -> 0 | N79: =AVERAGE(N67:N78) ->  | O79: =MAX(O67:O78) -> 0

Sheet SO2
A1: =+'Cover Page'!$B$29 -> Annual Performance Report 2023 | E1: =+'Cover Page'!$B$33 -> Cornwall Energy Recovery Centre
A3: Monitoring of Sulphur dioxide emissions | D3: Whole Installation | G3: See Notes in Cell Q3 | J3: =+A3 -> Monitoring of Sulphur dioxide emissions | N3: Per Combustion Line | Q3: Notes:
Q4: User to add logic to complete Whole installation, Table A5:G18. From the data in Per Combustion Line, Table J6:O79, subject to No. of lines installed
A5: mg/Nm3 | B5: 1/2 Hourly Reference Periods | E5: Daily Reference Periods
A6: =+'Cover Page'!C39 -> 2023 | B6: 1/2 hourly SO2 ELV | C6: Monthly 1/2 hourly mean | D6: Highest 1/2 hourly maximum | E6: Daily SO2 ELV* | F6: Monthly daily mean | G6: Highest daily maximum | J6: =+A6 -> 2023 | K6: mg/Nm3 | L6: Monthly 1/2 hourly mean | M6: Monthly 1/2 hourly maximum | N6: Monthly daily mean | O6: Monthly daily maximum
A7: Jan | B7: 200 | C7: =AVERAGE(L7,L22,L37,L52,L67) -> 11.5 | D7: =MAX(M7,M22,M37,M52,M67) -> 31 | E7: 50 | F7: =AVERAGE(N7,N22,N37,N52,N67) -> 11.6 | G7: =MAX(O7,O22,O37,O52,O67) -> 17 | J7: A1 | K7: Jan | L7: 12 | M7: 31 | N7: 11.9 | O7: 17
A8: Feb | B8: 200 | C8: =AVERAGE(L8,L23,L38,L53,L68) -> 11.5 | D8: =MAX(M8,M23,M38,M53,M68) -> 104 | E8: 50 | F8: =AVERAGE(N8,N23,N38,N53,N68) -> 11.55 | G8: =MAX(O8,O23,O38,O53,O68) -> 19 | K8: Feb | L8: 11 | M8: 104 | N8: 10.9 | O8: 15
A9: Mar | B9: 200 | C9: 15.5 | D9: 78 | E9: 50 | F9: 15.15 | G9: 20 | K9: Mar | L9: 15 | M9: 78 | N9: 14.5 | O9: 20 | Q9: Whole Installation table A5:G18:
A10: Apr | B10: 200 | C10: 8.5 | D10: 21 | E10: 50 | F10: 8.5 | G10: 13 | K10: Apr | L10: 9 | M10: 18 | N10: 9.4 | O10: 13 | Q10: Mean: for 1/2 hourly and daily periods calculate mean of values across all operational combustion lines for the month
A11: May | B11: 200 | C11: 9.5 | D11: 98 | E11: 50 | F11: 9.1 | G11: 20 | K11: May | L11: 12 | M11: 98 | N11: 11.8 | O11: 20
A12: Jun | B12: 200 | C12: 14.5 | D12: 62 | E12: 50 | F12: 14.3 | G12: 19 | K12: Jun | L12: 13 | M12: 43 | N12: 12.9 | O12: 18
A13: Jul | B13: 200 | C13: 12.5 | D13: 66 | E13: 50 | F13: 12.3 | G13: 18 | K13: Jul | L13: 12 | M13: 33 | N13: 11.7 | O13: 17 | Q13: Maximum: for 1/2 hourly and daily periods use the highest value across all operational combustion lines for the month
A14: Aug | B14: 200 | C14: 8.5 | D14: 25 | E14: 50 | F14: 8.95 | G14: 15 | K14: Aug | L14: 8 | M14: 18 | N14: 8.4 | O14: 10
A15: Sep | B15: 200 | C15: 8.5 | D15: 22 | E15: 50 | F15: 8.3 | G15: 12 | K15: Sep | L15: 9 | M15: 19 | N15: 8.7 | O15: 12
A16: Oct | B16: 200 | C16: 9.5 | D16: 167 | E16: 50 | F16: 9.2 | G16: 14 | K16: Oct | L16: 10 | M16: 34 | N16: 9.7 | O16: 12
A17: Nov | B17: 200 | C17: 10.5 | D17: 154 | E17: 50 | F17: 10.5 | G17: 17 | K17: Nov | L17: 11 | M17: 154 | N17: 10.6 | O17: 17
A18: Dec | B18: 200 | C18: 10 | D18: 33 | E18: 40 | F18: 10.15 | G18: 17 | K18: Dec | L18: 8 | M18: 27 | N18: 8.5 | O18: 17
E19: * ELV reduced to 40 mg/Nm3 on 3 December 2023 | K19: Annual | L19: =AVERAGE(L7:L18) -> 10.83333333 | M19: =MAX(M7:M18) -> 154 | N19: =AVERAGE(N7:N18) -> 10.75 | O19: =MAX(O7:O18) -> 20
J21: =+A6 -> 2023 | K21: mg/Nm3 | L21: Monthly 1/2 hourly mean | M21: Monthly 1/2 hourly maximum | N21: Monthly daily mean | O21: Monthly daily maximum
J22: A2 | K22: Jan | L22: 11 | M22: 23 | N22: 11.3 | O22: 15
K23: Feb | L23: 12 | M23: 27 | N23: 12.2 | O23: 19
K24: Mar | L24: 16 | M24: 53 | N24: 15.8 | O24: 20
K25: Apr | L25: 8 | M25: 21 | N25: 7.6 | O25: 10
K26: May | L26: 7 | M26: 21 | N26: 6.4 | O26: 10
K27: Jun | L27: 16 | M27: 62 | N27: 15.7 | O27: 19
K28: Jul | L28: 13 | M28: 66 | N28: 12.9 | O28: 18
K29: Aug | L29: 9 | M29: 25 | N29: 9.5 | O29: 15
K30: Sep | L30: 8 | M30: 22 | N30: 7.9 | O30: 11
K31: Oct | L31: 9 | M31: 167 | N31: 8.7 | O31: 14
K32: Nov | L32: 10 | M32: 150 | N32: 10.4 | O32: 17
K33: Dec | L33: 12 | M33: 33 | N33: 11.8 | O33: 16
K34: Annual | L34: =AVERAGE(L22:L33) -> 10.91666667 | M34: =MAX(M22:M33) -> 167 | N34: =AVERAGE(N22:N33) -> 10.85 | O34: =MAX(O22:O33) -> 20
J36: =+A6 -> 2023 | K36: mg/Nm3 | L36: Monthly 1/2 hourly mean | M36: Monthly 1/2 hourly maximum | N36: Monthly daily mean | O36: Monthly daily maximum
J37: A3 | K37: Jan
K38: Feb
K39: Mar
K40: Apr
K41: May
K42: Jun
K43: Jul
K44: Aug
K45: Sep
K46: Oct
K47: Nov
A48: Comments : | K48: Dec
K49: Annual | L49: =AVERAGE(L37:L48) ->  | M49: =MAX(M37:M48) -> 0 | N49: =AVERAGE(N37:N48) ->  | O49: =MAX(O37:O48) -> 0
J51: =+A6 -> 2023 | K51: mg/Nm3 | L51: Monthly 1/2 hourly mean | M51: Monthly 1/2 hourly maximum | N51: Monthly daily mean | O51: Monthly daily maximum
J52: A4 | K52: Jan
K53: Feb
K54: Mar
K55: Apr
K56: May
K57: Jun
K58: Jul
K59: Aug
K60: Sep
K61: Oct
K62: Nov
K63: Dec
K64: Annual | L64: =AVERAGE(L52:L63) ->  | M64: =MAX(M52:M63) -> 0 | N64: =AVERAGE(N52:N63) ->  | O64: =MAX(O52:O63) -> 0
J66: =+A6 -> 2023 | K66: mg/Nm3 | L66: Monthly 1/2 hourly mean | M66: Monthly 1/2 hourly maximum | N66: Monthly daily mean | O66: Monthly daily maximum
J67: A5 | K67: Jan
K68: Feb
K69: Mar
K70: Apr
K71: May
K72: Jun
K73: Jul
K74: Aug
K75: Sep
K76: Oct
K77: Nov
K78: Dec
K79: Annual | L79: =AVERAGE(L67:L78) ->  | M79: =MAX(M67:M78) -> 0 | N79: =AVERAGE(N67:N78) ->  | O79: =MAX(O67:O78) -> 0

Sheet NOx
A1: =+'Cover Page'!$B$29 -> Annual Performance Report 2023 | E1: =+'Cover Page'!$B$33 -> Cornwall Energy Recovery Centre
A3: Monitoring of Oxides of Nitrogen emissions | D3: Whole Installation | G3: See Notes in Cell Q3 | J3: =+A3 -> Monitoring of Oxides of Nitrogen emissions | N3: Per Combustion Line | Q3: Notes:
Q4: User to add logic to complete Whole installation, Table A5:G18. From the data in Per Combustion Line, Table J6:O79, subject to No. of lines installed
A5: mg/Nm3 | B5: 1/2 Hourly Reference Periods | E5: Daily Reference Periods
A6: =+'Cover Page'!C39 -> 2023 | B6: 1/2 hourly NOx ELV | C6: Monthly 1/2 hourly mean | D6: Highest 1/2 hourly maximum | E6: Daily NOx ELV* | F6: Monthly daily mean | G6: Highest daily maximum | J6: =+A6 -> 2023 | K6: mg/Nm3 | L6: Monthly 1/2 hourly mean | M6: Monthly 1/2 hourly maximum | N6: Monthly daily mean | O6: Monthly daily maximum
A7: Jan | B7: 400 | C7: =AVERAGE(L7,L22,L37,L52,L67) -> 135.3 | D7: =MAX(M7,M22,M37,M52,M67) -> 184 | E7: 200 | F7: =AVERAGE(N7,N22,N37,N52,N67) -> 135.4 | G7: =MAX(O7,O22,O37,O52,O67) -> 144 | J7: A1 | K7: Jan | L7: 135.5 | M7: 184 | N7: 135.5 | O7: 142
A8: Feb | B8: 400 | C8: =AVERAGE(L8,L23,L38,L53,L68) -> 125.25 | D8: =MAX(M8,M23,M38,M53,M68) -> 148 | E8: 200 | F8: =AVERAGE(N8,N23,N38,N53,N68) -> 126.25 | G8: =MAX(O8,O23,O38,O53,O68) -> 135 | K8: Feb | L8: 121.8 | M8: 148 | N8: 121.8 | O8: 135
A9: Mar | B9: 400 | C9: 138.5 | D9: 169 | E9: 200 | F9: 138.55 | G9: 152 | K9: Mar | L9: 138.4 | M9: 169 | N9: 138.4 | O9: 152 | Q9: Whole Installation table A5:G18:
A10: Apr | B10: 400 | C10: 138.35 | D10: 163 | E10: 200 | F10: 138.3 | G10: 149 | K10: Apr | L10: 132.2 | M10: 156 | N10: 132.1 | O10: 140 | Q10: Mean: for 1/2 hourly and daily periods calculate mean of values across all operational combustion lines for the month
A11: May | B11: 400 | C11: 125.5 | D11: 153 | E11: 200 | F11: 128.35 | G11: 141 | K11: May | L11: 119 | M11: 153 | N11: 121.6 | O11: 133
A12: Jun | B12: 400 | C12: 134.75 | D12: 167 | E12: 200 | F12: 136.2 | G12: 151 | K12: Jun | L12: 129.1 | M12: 151 | N12: 129.2 | O12: 135
A13: Jul | B13: 400 | C13: 136.6 | D13: 159 | E13: 200 | F13: 137 | G13: 145 | K13: Jul | L13: 131 | M13: 156 | N13: 131.3 | O13: 135 | Q13: Maximum: for 1/2 hourly and daily periods use the highest value across all operational combustion lines for the month
A14: Aug | B14: 400 | C14: 133.2 | D14: 204 | E14: 200 | F14: 133.2 | G14: 147 | K14: Aug | L14: 126.6 | M14: 154 | N14: 126.6 | O14: 130
A15: Sep | B15: 400 | C15: =AVERAGE(L15,L30,L45,L60,L75) -> 137.3 | D15: =MAX(M15,M30,M45,M60,M75) -> 160 | E15: 200 | F15: =AVERAGE(N15,N30,N45,N60,N75) -> 139.1 | G15: =MAX(O15,O30,O45,O60,O75) -> 151 | K15: Sep | L15: 132.5 | M15: 153 | N15: 134.4 | O15: 141
A16: Oct | B16: 400 | C16: 142.1 | D16: 171 | E16: 200 | F16: 142.05 | G16: 149 | K16: Oct | L16: 136.9 | M16: 155 | N16: 136.8 | O16: 139
A17: Nov | B17: 400 | C17: 141.45 | D17: 161 | E17: 200 | F17: 141.45 | G17: 148 | K17: Nov | L17: 137.6 | M17: 161 | N17: 137.6 | O17: 147
A18: Dec | B18: 400 | C18: 135.05 | D18: 164 | E18: 180 | F18: 135.9 | G18: 149 | K18: Dec | L18: 124.8 | M18: 148 | N18: 126 | O18: 135
E19: * ELV reduced to 180 mg/Nm3 on 3 December 2023 | K19: Annual | L19: =AVERAGE(L7:L18) -> 130.45 | M19: =MAX(M7:M18) -> 184 | N19: =AVERAGE(N7:N18) -> 130.9416667 | O19: =MAX(O7:O18) -> 152
J21: =+A6 -> 2023 | K21: mg/Nm3 | L21: Monthly 1/2 hourly mean | M21: Monthly 1/2 hourly maximum | N21: Monthly daily mean | O21: Monthly daily maximum
J22: A2 | K22: Jan | L22: 135.1 | M22: 157 | N22: 135.3 | O22: 144
K23: Feb | L23: 128.7 | M23: 147 | N23: 130.7 | O23: 135
K24: Mar | L24: 138.6 | M24: 160 | N24: 138.7 | O24: 148
K25: Apr | L25: 144.5 | M25: 163 | N25: 144.5 | O25: 149
K26: May | L26: 132 | M26: 153 | N26: 135.1 | O26: 141
K27: Jun | L27: 140.4 | M27: 167 | N27: 143.2 | O27: 151
K28: Jul | L28: 142.2 | M28: 159 | N28: 142.7 | O28: 145
K29: Aug | L29: 139.8 | M29: 204 | N29: 139.8 | O29: 147
K30: Sep | L30: 142.1 | M30: 160 | N30: 143.8 | O30: 151
K31: Oct | L31: 147.3 | M31: 171 | N31: 147.3 | O31: 149
K32: Nov | L32: 145.3 | M32: 161 | N32: 145.3 | O32: 148
K33: Dec | L33: 145.3 | M33: 164 | N33: 145.8 | O33: 149
K34: Annual | L34: =AVERAGE(L22:L33) -> 140.1083333 | M34: =MAX(M22:M33) -> 204 | N34: =AVERAGE(N22:N33) -> 141.0166667 | O34: =MAX(O22:O33) -> 151
J36: =+A6 -> 2023 | K36: mg/Nm3 | L36: Monthly 1/2 hourly mean | M36: Monthly 1/2 hourly maximum | N36: Monthly daily mean | O36: Monthly daily maximum
J37: A3 | K37: Jan
K38: Feb
K39: Mar
K40: Apr
K41: May
K42: Jun
K43: Jul
K44: Aug
K45: Sep
K46: Oct
K47: Nov
A48: Comments : | K48: Dec
K49: Annual | L49: =AVERAGE(L37:L48) ->  | M49: =MAX(M37:M48) -> 0 | N49: =AVERAGE(N37:N48) ->  | O49: =MAX(O37:O48) -> 0
J51: =+A6 -> 2023 | K51: mg/Nm3 | L51: Monthly 1/2 hourly mean | M51: Monthly 1/2 hourly maximum | N51: Monthly daily mean | O51: Monthly daily maximum
J52: A4 | K52: Jan
K53: Feb
K54: Mar
K55: Apr
K56: May
K57: Jun
K58: Jul
K59: Aug
K60: Sep
K61: Oct
K62: Nov
K63: Dec
K64: Annual | L64: =AVERAGE(L52:L63) ->  | M64: =MAX(M52:M63) -> 0 | N64: =AVERAGE(N52:N63) ->  | O64: =MAX(O52:O63) -> 0
J66: =+A6 -> 2023 | K66: mg/Nm3 | L66: Monthly 1/2 hourly mean | M66: Monthly 1/2 hourly maximum | N66: Monthly daily mean | O66: Monthly daily maximum
J67: A5 | K67: Jan
K68: Feb
K69: Mar
K70: Apr
K71: May
K72: Jun
K73: Jul
K74: Aug
K75: Sep
K76: Oct
K77: Nov
K78: Dec
K79: Annual | L79: =AVERAGE(L67:L78) ->  | M79: =MAX(M67:M78) -> 0 | N79: =AVERAGE(N67:N78) ->  | O79: =MAX(O67:O78) -> 0

Sheet TOC
A1: =+'Cover Page'!$B$29 -> Annual Performance Report 2023 | E1: =+'Cover Page'!$B$33 -> Cornwall Energy Recovery Centre
A3: Monitoring of Total organic carbon emissions | D3: Whole Installation | G3: See Notes in Cell Q3 | J3: =+A3 -> Monitoring of Total organic carbon emissions | N3: Per Combustion Line | Q3: Notes:
Q4: User to add logic to complete Whole installation, Table A5:G18. From the data in Per Combustion Line, Table J6:O79, subject to No. of lines installed
A5: mg/Nm3 | B5: 1/2 Hourly Reference Periods | E5: Daily Reference Periods
A6: =+'Cover Page'!C39 -> 2023 | B6: 1/2 hourly TOC ELV | C6: Monthly 1/2 hourly mean | D6: Highest 1/2 hourly maximum | E6: Daily TOC ELV | F6: Monthly daily mean | G6: Highest daily maximum | J6: =+A6 -> 2023 | K6: mg/Nm3 | L6: Monthly 1/2 hourly mean | M6: Monthly 1/2 hourly maximum | N6: Monthly daily mean | O6: Monthly daily maximum
A7: Jan | B7: 20 | C7: =AVERAGE(L7,L22,L37,L52,L67) -> 0.25 | D7: =MAX(M7,M22,M37,M52,M67) -> 4.2 | E7: 10 | F7: =AVERAGE(N7,N22,N37,N52,N67) -> 0.25 | G7: =MAX(O7,O22,O37,O52,O67) -> 0.4 | J7: A1 | K7: Jan | L7: 0.3 | M7: 0.5 | N7: 0.3 | O7: 0.4
A8: Feb | B8: 20 | C8: =AVERAGE(L8,L23,L38,L53,L68) -> 0.35 | D8: =MAX(M8,M23,M38,M53,M68) -> 3.5 | E8: 10 | F8: =AVERAGE(N8,N23,N38,N53,N68) -> 0.35 | G8: =MAX(O8,O23,O38,O53,O68) -> 0.5 | K8: Feb | L8: 0.4 | M8: 0.8 | N8: 0.4 | O8: 0.5
A9: Mar | B9: 20 | C9: 0.25 | D9: 3.5 | E9: 10 | F9: 0.27 | G9: 0.5 | K9: Mar | L9: 0.3 | M9: 2.9 | N9: 0.3 | O9: 0.5 | Q9: Whole Installation table A5:G18:
A10: Apr | B10: 20 | C10: 0.35 | D10: 3.2 | E10: 10 | F10: 0.35 | G10: 0.5 | K10: Apr | L10: 0.4 | M10: 2.8 | N10: 0.4 | O10: 0.5 | Q10: Mean: for 1/2 hourly and daily periods calculate mean of values across all operational combustion lines for the month
A11: May | B11: 20 | C11: 0.45 | D11: 6.2 | E11: 10 | F11: 0.4 | G11: 0.8 | K11: May | L11: 0.6 | M11: 6.2 | N11: 0.5 | O11: 0.8
A12: Jun | B12: 20 | C12: 0.65 | D12: 17.7 | E12: 10 | F12: 0.4 | G12: 0.6 | K12: Jun | L12: 0.4 | M12: 1.9 | N12: 0.4 | O12: 0.6
A13: Jul | B13: 20 | C13: 0.35 | D13: 6.6 | E13: 10 | F13: 0.33 | G13: 0.6 | K13: Jul | L13: 0.4 | M13: 6.6 | N13: 0.36 | O13: 0.6 | Q13: Maximum: for 1/2 hourly and daily periods use the highest value across all operational combustion lines for the month
A14: Aug | B14: 20 | C14: 0.35 | D14: 3.8 | E14: 10 | F14: 0.37 | G14: 0.6 | K14: Aug | L14: 0.4 | M14: 3.8 | N14: 0.4 | O14: 0.5
A15: Sep | B15: 20 | C15: 0.3 | D15: 3.9 | E15: 10 | F15: 0.31 | G15: 0.6 | K15: Sep | L15: 0.3 | M15: 0.6 | N15: 0.35 | O15: 0.4
A16: Oct | B16: 20 | C16: 0.25 | D16: 3.3 | E16: 10 | F16: 0.3 | G16: 0.4 | K16: Oct | L16: 0.3 | M16: 0.6 | N16: 0.36 | O16: 0.4
A17: Nov | B17: 20 | C17: 0.35 | D17: 5.2 | E17: 10 | F17: 0.315 | G17: 0.6 | K17: Nov | L17: 0.4 | M17: 3.2 | N17: 0.38 | O17: 0.4
A18: Dec | B18: 20 | C18: 0.5 | D18: 15.7 | E18: 10 | F18: 0.48 | G18: 1.9 | K18: Dec | L18: 0.5 | M18: 4.8 | N18: 0.42 | O18: 0.5
K19: Annual | L19: =AVERAGE(L7:L18) -> 0.3916666667 | M19: =MAX(M7:M18) -> 6.6 | N19: =AVERAGE(N7:N18) -> 0.3808333333 | O19: =MAX(O7:O18) -> 0.8
J21: =+A6 -> 2023 | K21: mg/Nm3 | L21: Monthly 1/2 hourly mean | M21: Monthly 1/2 hourly maximum | N21: Monthly daily mean | O21: Monthly daily maximum
J22: A2 | K22: Jan | L22: 0.2 | M22: 4.2 | N22: 0.2 | O22: 0.3
K23: Feb | L23: 0.3 | M23: 3.5 | N23: 0.3 | O23: 0.5
K24: Mar | L24: 0.2 | M24: 3.5 | N24: 0.24 | O24: 0.4
K25: Apr | L25: 0.3 | M25: 3.2 | N25: 0.3 | O25: 0.4
K26: May | L26: 0.3 | M26: 3.1 | N26: 0.3 | O26: 0.6
K27: Jun | L27: 0.9 | M27: 17.7 | N27: 0.4 | O27: 0.5
K28: Jul | L28: 0.3 | M28: 6.5 | N28: 0.3 | O28: 0.5
K29: Aug | L29: 0.3 | M29: 3.2 | N29: 0.34 | O29: 0.6
K30: Sep | L30: 0.3 | M30: 3.9 | N30: 0.27 | O30: 0.6
K31: Oct | L31: 0.2 | M31: 3.3 | N31: 0.24 | O31: 0.4
K32: Nov | L32: 0.3 | M32: 5.2 | N32: 0.25 | O32: 0.6
K33: Dec | L33: 0.5 | M33: 15.7 | N33: 0.54 | O33: 1.9
K34: Annual | L34: =AVERAGE(L22:L33) -> 0.3416666667 | M34: =MAX(M22:M33) -> 17.7 | N34: =AVERAGE(N22:N33) -> 0.3066666667 | O34: =MAX(O22:O33) -> 1.9
J36: =+A6 -> 2023 | K36: mg/Nm3 | L36: Monthly 1/2 hourly mean | M36: Monthly 1/2 hourly maximum | N36: Monthly daily mean | O36: Monthly daily maximum
J37: A3 | K37: Jan
K38: Feb
K39: Mar
K40: Apr
K41: May
K42: Jun
K43: Jul
K44: Aug
K45: Sep
K46: Oct
K47: Nov
A48: Comments : | K48: Dec
K49: Annual | L49: =AVERAGE(L37:L48) ->  | M49: =MAX(M37:M48) -> 0 | N49: =AVERAGE(N37:N48) ->  | O49: =MAX(O37:O48) -> 0
J51: =+A6 -> 2023 | K51: mg/Nm3 | L51: Monthly 1/2 hourly mean | M51: Monthly 1/2 hourly maximum | N51: Monthly daily mean | O51: Monthly daily maximum
J52: A4 | K52: Jan
K53: Feb
K54: Mar
K55: Apr
K56: May
K57: Jun
K58: Jul
K59: Aug
K60: Sep
K61: Oct
K62: Nov
K63: Dec
K64: Annual | L64: =AVERAGE(L52:L63) ->  | M64: =MAX(M52:M63) -> 0 | N64: =AVERAGE(N52:N63) ->  | O64: =MAX(O52:O63) -> 0
J66: =+A6 -> 2023 | K66: mg/Nm3 | L66: Monthly 1/2 hourly mean | M66: Monthly 1/2 hourly maximum | N66: Monthly daily mean | O66: Monthly daily maximum
J67: A5 | K67: Jan
K68: Feb
K69: Mar
K70: Apr
K71: May
K72: Jun
K73: Jul
K74: Aug
K75: Sep
K76: Oct
K77: Nov
K78: Dec
K79: Annual | L79: =AVERAGE(L67:L78) ->  | M79: =MAX(M67:M78) -> 0 | N79: =AVERAGE(N67:N78) ->  | O79: =MAX(O67:O78) -> 0

Sheet Particulates
A1: =+'Cover Page'!$B$29 -> Annual Performance Report 2023 | E1: =+'Cover Page'!$B$33 -> Cornwall Energy Recovery Centre
A3: Monitoring of Particulate matter emissions | D3: Whole Installation | G3: See Notes in Cell Q3 | J3: =+A3 -> Monitoring of Particulate matter emissions | N3: Per Combustion Line | Q3: Notes:
Q4: User to add logic to complete Whole installation, Table A5:G18. From the data in Per Combustion Line, Table J6:O79, subject to No. of lines installed
A5: mg/Nm3 | B5: 1/2 Hourly Reference Periods | E5: Daily Reference Periods
A6: =+'Cover Page'!C39 -> 2023 | B6: 1/2 hourly PM ELV | C6: Monthly 1/2 hourly mean | D6: Highest 1/2 hourly maximum | E6: Daily PM ELV* | F6: Monthly daily mean | G6: Highest daily maximum | J6: =+A6 -> 2023 | K6: mg/Nm3 | L6: Monthly 1/2 hourly mean | M6: Monthly 1/2 hourly maximum | N6: Monthly daily mean | O6: Monthly daily maximum
A7: Jan | B7: 30 | C7: =AVERAGE(L7,L22,L37,L52,L67) -> 0.5 | D7: =MAX(M7,M22,M37,M52,M67) -> 1.4 | E7: 10 | F7: =AVERAGE(N7,N22,N37,N52,N67) -> 0.48 | G7: =MAX(O7,O22,O37,O52,O67) -> 1 | J7: A1 | K7: Jan | L7: 0.7 | M7: 1.3 | N7: 0.71 | O7: 1
A8: Feb | B8: 30 | C8: =AVERAGE(L8,L23,L38,L53,L68) -> 0.4 | D8: =MAX(M8,M23,M38,M53,M68) -> 53 | E8: 10 | F8: =AVERAGE(N8,N23,N38,N53,N68) -> 0.42 | G8: =MAX(O8,O23,O38,O53,O68) -> 2 | K8: Feb | L8: 0.6 | M8: 53 | N8: 0.64 | O8: 2
A9: Mar | B9: 30 | C9: 0.55 | D9: 3.1 | E9: 10 | F9: 0.55 | G9: 2.1 | K9: Mar | L9: 0.8 | M9: 3.1 | N9: 0.8 | O9: 2.1 | Q9: Whole Installation table A5:G18:
A10: Apr | B10: 30 | C10: 0.8 | D10: 8.4 | E10: 10 | F10: 0.77 | G10: 2.5 | K10: Apr | L10: 1.4 | M10: 8.4 | N10: 1.4 | O10: 2.5 | Q10: Mean: for 1/2 hourly and daily periods calculate mean of values across all operational combustion lines for the month
A11: May | B11: 30 | C11: 0.55 | D11: 64.3 | E11: 10 | F11: 0.57 | G11: 3.8 | K11: May | L11: 1 | M11: 64.3 | N11: 1 | O11: 3.8
A12: Jun | B12: 30 | C12: 1.05 | D12: 58.3 | E12: 10 | F12: 1 | G12: 4.4 | K12: Jun | L12: 1.7 | M12: 58.3 | N12: 1.6 | O12: 4.4
A13: Jul | B13: 30 | C13: 0.75 | D13: 9.5 | E13: 10 | F13: 0.755 | G13: 4.1 | K13: Jul | L13: 1 | M13: 9.5 | N13: 1 | O13: 4.1 | Q13: Maximum: for 1/2 hourly and daily periods use the highest value across all operational combustion lines for the month
A14: Aug | B14: 30 | C14: 0.6 | D14: 6.2 | E14: 10 | F14: 0.6 | G14: 3.6 | K14: Aug | L14: 0.8 | M14: 6.2 | N14: 0.8 | O14: 3.6
A15: Sep | B15: 30 | C15: 0.55 | D15: 1.6 | E15: 10 | F15: 0.55 | G15: 1.1 | K15: Sep | L15: 0.6 | M15: 1.3 | N15: 0.6 | O15: 0.8
A16: Oct | B16: 30 | C16: 0.7 | D16: 4.3 | E16: 10 | F16: 0.7 | G16: 2.4 | K16: Oct | L16: 0.6 | M16: 0.8 | N16: 0.6 | O16: 0.7
A17: Nov | B17: 30 | C17: 0.65 | D17: 11.8 | E17: 10 | F17: 0.62 | G17: 3.5 | K17: Nov | L17: 0.8 | M17: 11.3 | N17: 0.77 | O17: 1.4
A18: Dec | B18: 30 | C18: 0.75 | D18: 24.4 | E18: 5 | F18: 0.725 | G18: 2.6 | K18: Dec | L18: 1.1 | M18: 3.9 | N18: 1.1 | O18: 2.2
E19: * ELV reduced to 5 mg/Nm3 on 3 December 2023 | K19: Annual | L19: =AVERAGE(L7:L18) -> 0.925 | M19: =MAX(M7:M18) -> 64.3 | N19: =AVERAGE(N7:N18) -> 0.9183333333 | O19: =MAX(O7:O18) -> 4.4
J21: =+A6 -> 2023 | K21: mg/Nm3 | L21: Monthly 1/2 hourly mean | M21: Monthly 1/2 hourly maximum | N21: Monthly daily mean | O21: Monthly daily maximum
J22: A2 | K22: Jan | L22: 0.3 | M22: 1.4 | N22: 0.25 | O22: 0.9
K23: Feb | L23: 0.2 | M23: 1.6 | N23: 0.2 | O23: 0.4
K24: Mar | L24: 0.3 | M24: 1.2 | N24: 0.3 | O24: 0.4
K25: Apr | L25: 0.2 | M25: 0.7 | N25: 0.14 | O25: 0.3
K26: May | L26: 0.1 | M26: 0.4 | N26: 0.14 | O26: 0.2
K27: Jun | L27: 0.4 | M27: 4.6 | N27: 0.4 | O27: 0.6
K28: Jul | L28: 0.5 | M28: 1.8 | N28: 0.51 | O28: 1.1
K29: Aug | L29: 0.4 | M29: 1.6 | N29: 0.4 | O29: 0.9
K30: Sep | L30: 0.5 | M30: 1.6 | N30: 0.5 | O30: 1.1
K31: Oct | L31: 0.8 | M31: 4.3 | N31: 0.8 | O31: 2.4
K32: Nov | L32: 0.5 | M32: 11.8 | N32: 0.47 | O32: 3.5
K33: Dec | L33: 0.4 | M33: 24.4 | N33: 0.35 | O33: 2.6
K34: Annual | L34: =AVERAGE(L22:L33) -> 0.3833333333 | M34: =MAX(M22:M33) -> 24.4 | N34: =AVERAGE(N22:N33) -> 0.3716666667 | O34: =MAX(O22:O33) -> 3.5
J36: =+A6 -> 2023 | K36: mg/Nm3 | L36: Monthly 1/2 hourly mean | M36: Monthly 1/2 hourly maximum | N36: Monthly daily mean | O36: Monthly daily maximum
J37: A3 | K37: Jan
K38: Feb
K39: Mar
K40: Apr
K41: May
K42: Jun
K43: Jul
K44: Aug
K45: Sep
K46: Oct
K47: Nov
A48: Comments : | K48: Dec
K49: Annual | L49: =AVERAGE(L37:L48) ->  | M49: =MAX(M37:M48) -> 0 | N49: =AVERAGE(N37:N48) ->  | O49: =MAX(O37:O48) -> 0
J51: =+A6 -> 2023 | K51: mg/Nm3 | L51: Monthly 1/2 hourly mean | M51: Monthly 1/2 hourly maximum | N51: Monthly daily mean | O51: Monthly daily maximum
J52: A4 | K52: Jan
K53: Feb
K54: Mar
K55: Apr
K56: May
K57: Jun
K58: Jul
K59: Aug
K60: Sep
K61: Oct
K62: Nov
K63: Dec
K64: Annual | L64: =AVERAGE(L52:L63) ->  | M64: =MAX(M52:M63) -> 0 | N64: =AVERAGE(N52:N63) ->  | O64: =MAX(O52:O63) -> 0
J66: =+A6 -> 2023 | K66: mg/Nm3 | L66: Monthly 1/2 hourly mean | M66: Monthly 1/2 hourly maximum | N66: Monthly daily mean | O66: Monthly daily maximum
J67: A5 | K67: Jan
K68: Feb
K69: Mar
K70: Apr
K71: May
K72: Jun
K73: Jul
K74: Aug
K75: Sep
K76: Oct
K77: Nov
K78: Dec
K79: Annual | L79: =AVERAGE(L67:L78) ->  | M79: =MAX(M67:M78) -> 0 | N79: =AVERAGE(N67:N78) ->  | O79: =MAX(O67:O78) -> 0

Sheet CO 95% 10 min
A1: =+'Cover Page'!$B$29 -> Annual Performance Report 2023 | E1: =+'Cover Page'!$B$33 -> Cornwall Energy Recovery Centre
A3: Monitoring of Carbon Monoxide (10-minute avg) | E3: Whole Installation | H3: See Notes in Cell S3 | J3: =+A3 -> Monitoring of Carbon Monoxide (10-minute avg) | O3: Per Combustion Line | Q3: Notes: | S3: Notes:
S4: User to add logic to complete Whole installation, Table A5:H18. From the data in Per Combustion Line, Table K6:Q79, subject to No. of lines installed
A5: mg/Nm3 | B5: 10-minute Reference Periods | F5: Daily Reference Periods
A6: =+'Cover Page'!C39 -> 2023 | B6: 95%ile 10-min avg CO ELV | C6: 95%ile 10-min avg maximum | D6: Monthly CO 10-min avg mean | E6: 10-min avg maximum | F6: Daily CO ELV | G6: Monthly daily mean | H6: Highest daily maximum | K6: =+A6 -> 2023 | L6: mg/Nm3 | M6: 95%ile 10-min avg maximum | N6: Monthly CO 10-min avg mean | O6: 10-min avg maximum | P6: Monthly daily mean | Q6: Monthly daily maximum
A7: Jan | B7: 150 | C7: =AVERAGE(M7,M22,M37,M52,M67) -> 6.4 | D7: =AVERAGE(N7,N22,N37,N52,N67) -> 3.6 | E7: =MAX(O7,O22,O37,O52,O67) -> 217 | F7: 50 | G7: =AVERAGE(P7,P22,P37,P52,P67) -> 3.45 | H7: =MAX(Q7,Q22,Q37,Q52,Q67) -> 7.5 | K7: A1 | L7: Jan | M7: 4.1 | N7: 1.8 | O7: 106 | P7: 1.8 | Q7: 3.9
A8: Feb | B8: =+B7 -> 150 | C8: =AVERAGE(M8,M23,M38,M53,M68) -> 6.95 | D8: 4.65 | E8: =MAX(O8,O23,O38,O53,O68) -> 303 | F8: =+F7 -> 50 | G8: =AVERAGE(P8,P23,P38,P53,P68) -> 4.7 | H8: =MAX(Q8,Q23,Q38,Q53,Q68) -> 9.8 | L8: Feb | M8: 6.6 | N8: 3 | O8: 158 | P8: 3.1 | Q8: 9.8
A9: Mar | B9: =+B8 -> 150 | C9: 7.7 | D9: 5.7 | E9: 252 | F9: =+F8 -> 50 | G9: 5.8 | H9: 10 | L9: Mar | M9: 7.7 | N9: 4.8 | O9: 219 | P9: 5 | Q9: 7.6 | S9: Whole Installation table A5:H18:
A10: Apr | B10: 150 | C10: 4.2 | D10: 3.3 | E10: 234 | F10: 50 | G10: 2.45 | H10: 7.2 | L10: Apr | M10: 4.1 | N10: 3.5 | O10: 158 | P10: 1.8 | Q10: 7.2 | S10: Mean: for 10-min and daily periods use average of all operational combustion lines.
A11: May | B11: 150 | C11: 8.8 | D11: 5.15 | E11: 601 | F11: 50 | G11: 4.6 | H11: 8.3 | L11: May | M11: 9.5 | N11: 4.1 | O11: 601 | P11: 3.4 | Q11: 7.8
A12: Jun | B12: 150 | C12: 19.5 | D12: 4.85 | E12: 652 | F12: 50 | G12: 3.55 | H12: 10.9 | L12: Jun | M12: 7 | N12: 2.1 | O12: 178 | P12: 2.1 | Q12: 9.4
A13: Jul | B13: 150 | C13: 4.3 | D13: 2.9 | E13: 292 | F13: 50 | G13: 2.35 | H13: 9.1 | L13: Jul | M13: 2.5 | N13: 2.2 | O13: 292 | P13: 1.2 | Q13: 2.7 | S13: Maximum: for 10-min and daily periods use the highest of all operational combustion lines in any month.
A14: Aug | B14: 150 | C14: 2.55 | D14: 1.35 | E14: 250 | F14: 50 | G14: 1.4 | H14: 5.3 | L14: Aug | M14: 1.2 | N14: 0.4 | O14: 144 | P14: 0.3 | Q14: 1.4
A15: Sep | B15: 150 | C15: 3.75 | D15: 1.85 | E15: 320 | F15: 50 | G15: 1.85 | H15: 13.9 | L15: Sep | M15: 2.1 | N15: 0.8 | O15: 164 | P15: 0.8 | Q15: 2.2
A16: Oct | B16: 150 | C16: 3.8 | D16: 1.75 | E16: 206 | F16: 50 | G16: 1.82 | H16: 5.4 | L16: Oct | M16: 3 | N16: 1.2 | O16: 52 | P16: 1.24 | Q16: 2.6
A17: Nov | B17: 150 | C17: 4.75 | D17: 2.7 | E17: 437 | F17: 50 | G17: 2.65 | H17: 6.4 | L17: Nov | M17: 4.6 | N17: 2.6 | O17: 330 | P17: 2.6 | Q17: 5.3
A18: Dec | B18: 150 | C18: 7.3 | D18: 2.45 | E18: 626 | F18: 50 | G18: 1.94 | H18: 8.4 | L18: Dec | M18: 8.8 | N18: 2 | O18: 626 | P18: 0.98 | Q18: 3.5
L19: Annual | M19: =AVERAGE(M7:M18) -> 5.1 | O19: =MAX(O7:O18) -> 626 | P19: =AVERAGE(P7:P18) -> 2.026666667 | Q19: =MAX(Q7:Q18) -> 9.8
K21: =+A6 -> 2023 | L21: mg/Nm3 | M21: 95%ile 10-min avg maximum | N21: Monthly CO 10-min avg mean | O21: 10-min avg maximum | P21: Monthly daily mean | Q21: Monthly daily maximum
K22: A2 | L22: Jan | M22: 8.7 | N22: 5.4 | O22: 217 | P22: 5.1 | Q22: 7.5
L23: Feb | M23: 7.3 | N23: 6.3 | O23: 303 | P23: 6.3 | Q23: 8
L24: Mar | M24: 7.7 | N24: 6.6 | O24: 252 | P24: 6.6 | Q24: 10
L25: Apr | M25: 4.3 | N25: 3.1 | O25: 234 | P25: 3.1 | Q25: 5
L26: May | M26: 8.1 | N26: 6.2 | O26: 165 | P26: 5.8 | Q26: 8.3
L27: Jun | M27: 32 | N27: 7.6 | O27: 652 | P27: 5 | Q27: 10.9
L28: Jul | M28: 6.1 | N28: 3.6 | O28: 233 | P28: 3.5 | Q28: 9.1
L29: Aug | M29: 3.9 | N29: 2.3 | O29: 250 | P29: 2.5 | Q29: 5.3
L30: Sep | M30: 5.4 | N30: 2.9 | O30: 320 | P30: 2.9 | Q30: 13.9
L31: Oct | M31: 4.6 | N31: 2.3 | O31: 206 | P31: 2.4 | Q31: 5.4
L32: Nov | M32: 4.9 | N32: 2.8 | O32: 437 | P32: 2.7 | Q32: 6.4
L33: Dec | M33: 5.8 | N33: 2.9 | O33: 293 | P33: 2.9 | Q33: 8.4
L34: Annual | M34: =AVERAGE(M22:M33) -> 8.233333333 | O34: =MAX(O22:O33) -> 652 | P34: =AVERAGE(P22:P33) -> 4.066666667 | Q34: =MAX(Q22:Q33) -> 13.9
K36: =+A6 -> 2023 | L36: mg/Nm3 | M36: 95%ile 10-min avg maximum | N36: Monthly CO 10-min avg mean | O36: 10-min avg maximum | P36: Monthly daily mean | Q36: Monthly daily maximum
K37: A3 | L37: Jan
L38: Feb
L39: Mar
L40: Apr
L41: May
L42: Jun
L43: Jul
L44: Aug
L45: Sep
L46: Oct
L47: Nov
A48: Comments : | L48: Dec
A49: Environment Agency explanatory note: The 10-minute average ELV is based on the “95th percentile”. In this case this means that 95% of the 10 minute averages in the relevant 24-hour period (i.e. 137) must be below 150 mg/Nm3, and 5% (i.e. 7) are allowed to be any value above 150 mg/Nm3. Whilst we expect operators to minimise CO emissions at all times, it is perfectly acceptable for the value of the maximum 10-minute average to be above 150 mg/Nm3, provided the 95th percentile ELV has been met for that period. | L49: Annual | M49: =AVERAGE(M37:M48) ->  | O49: =MAX(O37:O48) -> 0 | P49: =AVERAGE(P37:P48) ->  | Q49: =MAX(Q37:Q48) -> 0
K51: =+A6 -> 2023 | L51: mg/Nm3 | M51: 95%ile 10-min avg maximum | N51: Monthly CO 10-min avg mean | O51: 10-min avg maximum | P51: Monthly daily mean | Q51: Monthly daily maximum
K52: A4 | L52: Jan
L53: Feb
L54: Mar
L55: Apr
L56: May
L57: Jun
L58: Jul
L59: Aug
L60: Sep
L61: Oct
L62: Nov
L63: Dec
L64: Annual | M64: =AVERAGE(M52:M63) ->  | O64: =MAX(O52:O63) -> 0 | P64: =AVERAGE(P52:P63) ->  | Q64: =MAX(Q52:Q63) -> 0
K66: =+A6 -> 2023 | L66: mg/Nm3 | M66: 95%ile 10-min avg maximum | N66: Monthly CO 10-min avg mean | O66: 10-min avg maximum | P66: Monthly daily mean | Q66: Monthly daily maximum
K67: A5 | L67: Jan
L68: Feb
L69: Mar
L70: Apr
L71: May
L72: Jun
L73: Jul
L74: Aug
L75: Sep
L76: Oct
L77: Nov
L78: Dec
L79: Annual | M79: =AVERAGE(M67:M78) ->  | O79: =MAX(O67:O78) -> 0 | P79: =AVERAGE(P67:P78) ->  | Q79: =MAX(Q67:Q78) -> 0

Sheet HF
A1: =+'Cover Page'!$B$29 -> Annual Performance Report 2023 | E1: =+'Cover Page'!$B$33 -> Cornwall Energy Recovery Centre
A3: Monitoring of Hydrogen Fluoride emissions | D3: Whole Installation | G3: See Notes in Cell Q3 | J3: =+A3 -> Monitoring of Hydrogen Fluoride emissions | N3: Per Combustion Line | Q3: Notes:
Q4: User to add logic to complete Whole installation, Table A5:G18. From the data in Per Combustion Line, Table J6:O79, subject to No. of lines installed
A5: mg/Nm3 | B5: 1/2 Hourly Reference Periods | E5: Daily Reference Periods
A6: =+'Cover Page'!C39 -> 2023 | B6: 1/2 hourly HF ELV | C6: Monthly 1/2 hourly mean | D6: Highest 1/2 hourly maximum | E6: Daily HF ELV* | F6: Monthly daily mean | G6: Highest daily maximum | J6: =+A6 -> 2023 | K6: mg/Nm3 | L6: Monthly 1/2 hourly mean | M6: Monthly 1/2 hourly maximum | N6: Monthly daily mean | O6: Monthly daily maximum
A7: Jan | B7: 4 | C7: =AVERAGE(L7,L22) -> 0 | D7: =MAX(M7,M22,M37,M52,M67) -> 0.5 | E7: 1 | F7: =AVERAGE(N7,N22,N37,N52,N67) -> 0.0065 | G7: =MAX(O7,O22,O37,O52,O67) -> 0.2 | J7: A1 | K7: Jan | L7: 0 | M7: 0.5 | N7: 0 | O7: 0
A8: Feb | B8: 4 | C8: =AVERAGE(L8,L23,L38,L53,L68) -> 0 | D8: =MAX(M8,M23,M38,M53,M68) -> 1.8 | E8: 1 | F8: =AVERAGE(N8,N23,N38,N53,N68) -> 0 | G8: =MAX(O8,O23,O38,O53,O68) -> 0 | K8: Feb | L8: 0 | M8: 1.8 | N8: 0 | O8: 0
A9: Mar | B9: =+B8 -> 4 | C9: 0 | D9: 0.5 | E9: 1 | F9: 0 | G9: 0 | K9: Mar | L9: 0 | M9: 0.5 | N9: 0 | O9: 0 | Q9: Whole Installation table A5:G18:
A10: Apr | B10: 4 | C10: 0 | D10: 0.1 | E10: 1 | F10: 0 | G10: 0 | K10: Apr | L10: 0 | M10: 0 | N10: 0 | O10: 0 | Q10: Mean: for 1/2 hourly and daily periods calculate mean of values across all operational combustion lines for the month
A11: May | B11: 4 | C11: 0 | D11: 0 | E11: 1 | F11: 0 | G11: 0 | K11: May | L11: 0 | M11: 0 | N11: 0 | O11: 0
A12: Jun | B12: 4 | C12: 0 | D12: 1.3 | E12: 1 | F12: 0 | G12: 0 | K12: Jun | L12: 0 | M12: 1.3 | N12: 0 | O12: 0
A13: Jul | B13: 4 | C13: 0 | D13: 0.8 | E13: 1 | F13: 0.005 | G13: 0.2 | K13: Jul | L13: 0 | M13: 0.6 | N13: 0 | O13: 0.2 | Q13: Maximum: for 1/2 hourly and daily periods use the highest value across all operational combustion lines for the month
A14: Aug | B14: 4 | C14: 0 | D14: 1 | E14: 1 | F14: 0.015 | G14: 0.4 | K14: Aug | L14: 0 | M14: 1 | N14: 0 | O14: 0
A15: Sep | B15: 4 | C15: 0 | D15: 0.6 | E15: 1 | F15: 0 | G15: 0 | K15: Sep | L15: 0 | M15: 0.6 | N15: 0 | O15: 0
A16: Oct | B16: 4 | C16: 0 | D16: 0.8 | E16: 1 | F16: 0 | G16: 0 | K16: Oct | L16: 0 | M16: 0.7 | N16: 0 | O16: 0
A17: Nov | B17: 4 | C17: 0 | D17: 0.6 | E17: 1 | F17: 0 | G17: 0 | K17: Nov | L17: 0 | M17: 0.6 | N17: 0 | O17: 0
A18: Dec | B18: 4 | C18: 0 | D18: 0.2 | E18: 1 | F18: 0.0015 | G18: 0.1 | K18: Dec | L18: 0 | M18: 0 | N18: 0 | O18: 0
K19: Annual | L19: =AVERAGE(L7:L18) -> 0 | M19: =MAX(M7:M18) -> 1.8 | N19: =AVERAGE(N7:N18) -> 0 | O19: =MAX(O7:O18) -> 0.2
J21: =+A6 -> 2023 | K21: mg/Nm3 | L21: Monthly 1/2 hourly mean | M21: Monthly 1/2 hourly maximum | N21: Monthly daily mean | O21: Monthly daily maximum
J22: A2 | K22: Jan | L22: 0 | M22: 0.5 | N22: 0.013 | O22: 0.2
K23: Feb | L23: 0 | M23: 0.3 | N23: 0 | O23: 0
K24: Mar | L24: 0 | M24: 0.4 | N24: 0 | O24: 0
K25: Apr | L25: 0 | M25: 0.1 | N25: 0 | O25: 0
K26: May | L26: 0 | M26: 0 | N26: 0 | O26: 0
K27: Jun | L27: 0 | M27: 0 | N27: 0 | O27: 0
K28: Jul | L28: 0 | M28: 0.8 | N28: 0.01 | O28: 0.2
K29: Aug | L29: 0 | M29: 0.8 | N29: 0.03 | O29: 0.4
K30: Sep | L30: 0 | M30: 0.5 | N30: 0 | O30: 0
K31: Oct | L31: 0 | M31: 0.8 | N31: 0 | O31: 0
K32: Nov | L32: 0 | M32: 0.6 | N32: 0 | O32: 0
K33: Dec | L33: 0 | M33: 0.2 | N33: 0.003 | O33: 0.1
K34: Annual | L34: =AVERAGE(L22:L33) -> 0 | M34: =MAX(M22:M33) -> 0.8 | N34: =AVERAGE(N22:N33) -> 0.004666666667 | O34: =MAX(O22:O33) -> 0.4
J36: =+A6 -> 2023 | K36: mg/Nm3 | L36: Monthly 1/2 hourly mean | M36: Monthly 1/2 hourly maximum | N36: Monthly daily mean | O36: Monthly daily maximum
J37: A3 | K37: Jan
K38: Feb
K39: Mar
K40: Apr
K41: May
K42: Jun
K43: Jul
K44: Aug
K45: Sep
K46: Oct
K47: Nov
A48: Comments : | K48: Dec
K49: Annual | L49: =AVERAGE(L37:L48) ->  | M49: =MAX(M37:M48) -> 0 | N49: =AVERAGE(N37:N48) ->  | O49: =MAX(O37:O48) -> 0
J51: =+A6 -> 2023 | K51: mg/Nm3 | L51: Monthly 1/2 hourly mean | M51: Monthly 1/2 hourly maximum | N51: Monthly daily mean | O51: Monthly daily maximum
J52: A4 | K52: Jan
K53: Feb
K54: Mar
K55: Apr
K56: May
K57: Jun
K58: Jul
K59: Aug
K60: Sep
K61: Oct
K62: Nov
K63: Dec
K64: Annual | L64: =AVERAGE(L52:L63) ->  | M64: =MAX(M52:M63) -> 0 | N64: =AVERAGE(N52:N63) ->  | O64: =MAX(O52:O63) -> 0
J66: =+A6 -> 2023 | K66: mg/Nm3 | L66: Monthly 1/2 hourly mean | M66: Monthly 1/2 hourly maximum | N66: Monthly daily mean | O66: Monthly daily maximum
J67: A5 | K67: Jan
K68: Feb
K69: Mar
K70: Apr
K71: May
K72: Jun
K73: Jul
K74: Aug
K75: Sep
K76: Oct
K77: Nov
K78: Dec
K79: Annual | L79: =AVERAGE(L67:L78) ->  | M79: =MAX(M67:M78) -> 0 | N79: =AVERAGE(N67:N78) ->  | O79: =MAX(O67:O78) -> 0

Sheet NH3
A1: =+'Cover Page'!$B$29 -> Annual Performance Report 2023 | E1: =+'Cover Page'!$B$33 -> Cornwall Energy Recovery Centre
A3: Monitoring of Ammnonia emissions | D3: Whole Installation | G3: See Notes in Cell Q3 | J3: =+A3 -> Monitoring of Ammnonia emissions | N3: Per Combustion Line | Q3: Notes:
Q4: User to add logic to complete Whole installation, Table A5:G18. From the data in Per Combustion Line, Table J6:O79, subject to No. of lines installed
A5: mg/Nm3 | B5: 1/2 Hourly Reference Periods | E5: Daily Reference Periods
A6: =+'Cover Page'!C39 -> 2023 | B6: 1/2 hourly NH3 ELV | C6: Monthly 1/2 hourly mean | D6: Highest 1/2 hourly maximum | E6: Daily NH3 ELV* | F6: Monthly daily mean | G6: Highest daily maximum | J6: =+A6 -> 2023 | K6: mg/Nm3 | L6: Monthly 1/2 hourly mean | M6: Monthly 1/2 hourly maximum | N6: Monthly daily mean | O6: Monthly daily maximum
A7: Jan | B7: None | C7: =AVERAGE(L7,L22,L37,L52,L67) -> 0 | D7: =MAX(M7,M22,M37,M52,M67) -> 0.4 | E7: 10 | F7: =AVERAGE(N7,N22,N37,N52,N67) -> 0 | G7: =MAX(O7,O22,O37,O52,O67) -> 0 | J7: A1 | K7: Jan | L7: 0 | M7: 0 | N7: 0 | O7: 0
A8: Feb | B8: =+B7 -> None | C8: =AVERAGE(L8,L23,L38,L53,L68) -> 0 | D8: =MAX(M8,M23,M38,M53,M68) -> 6.9 | E8: 10 | F8: =AVERAGE(N8,N23,N38,N53,N68) -> 0 | G8: =MAX(O8,O23,O38,O53,O68) -> 0 | K8: Feb | L8: 0 | M8: 6.9 | N8: 0 | O8: 0
A9: Mar | B9: =+B8 -> None | C9: 0 | D9: 0.9 | E9: 10 | F9: 0.013 | G9: 0.4 | K9: Mar | L9: 0 | M9: 0.9 | N9: 0.026 | O9: 0.4 | Q9: Whole Installation table A5:G18:
A10: Apr | B10: None | C10: 0 | D10: 0.9 | E10: 10 | F10: 0 | G10: 0 | K10: Apr | L10: 0 | M10: 0.9 | N10: 0 | O10: 0 | Q10: Mean: for 1/2 hourly and daily periods calculate mean of values across all operational combustion lines for the month
A11: May | B11: None | C11: 0 | D11: 2 | E11: 10 | F11: 0.025 | G11: 0.4 | K11: May | L11: 0 | M11: 2 | N11: 0.05 | O11: 0.4
A12: Jun | B12: None | C12: =AVERAGE(L12,L27,L42,L57,L72) -> 0.05 | D12: 3.8 | E12: 10 | F12: 0 | G12: 0.1 | K12: Jun | L12: 0 | M12: 1.9 | N12: 0 | O12: 0
A13: Jul | B13: None | C13: 0 | D13: 2.1 | E13: 10 | F13: 0 | G13: 0 | K13: Jul | L13: 0 | M13: 0.4 | N13: 0 | O13: 0 | Q13: Maximum: for 1/2 hourly and daily periods use the highest value across all operational combustion lines for the month
A14: Aug | B14: None | C14: 0 | D14: 0.1 | E14: 10 | F14: 0 | G14: 0 | K14: Aug | L14: 0 | M14: 0 | N14: 0 | O14: 0
A15: Sep | B15: None | C15: 0 | D15: 0.6 | E15: 10 | F15: 0 | G15: 0 | K15: Sep | L15: 0 | M15: 0.6 | N15: 0 | O15: 0
A16: Oct | B16: None | C16: 0 | D16: 0.1 | E16: 10 | F16: 0 | G16: 0 | K16: Oct | L16: 0 | M16: 0 | N16: 0 | O16: 0
A17: Nov | B17: None | C17: 0 | D17: 0.7 | E17: 10 | F17: 0.005 | G17: 0.1 | K17: Nov | L17: 0 | M17: 0.4 | N17: 0.01 | O17: 0.1
A18: Dec | B18: None | C18: 0 | D18: 3.3 | E18: 10 | F18: 0 | G18: 0 | K18: Dec | L18: 0 | M18: 3.3 | N18: 0 | O18: 0
K19: Annual | L19: =AVERAGE(L7:L18) -> 0 | M19: =MAX(M7:M18) -> 6.9 | N19: =AVERAGE(N7:N18) -> 0.007166666667 | O19: =MAX(O7:O18) -> 0.4
J21: =+A6 -> 2023 | K21: mg/Nm3 | L21: Monthly 1/2 hourly mean | M21: Monthly 1/2 hourly maximum | N21: Monthly daily mean | O21: Monthly daily maximum
J22: A2 | K22: Jan | L22: 0 | M22: 0.4 | N22: 0 | O22: 0
K23: Feb | L23: 0 | M23: 1.5 | N23: 0 | O23: 0
K24: Mar | L24: 0 | M24: 0.5 | N24: 0 | O24: 0
K25: Apr | L25: 0 | M25: 0.1 | N25: 0 | O25: 0
K26: May | L26: 0 | M26: 0.1 | N26: 0 | O26: 0
K27: Jun | L27: 0.1 | M27: 3.8 | N27: 0 | O27: 0.1
K28: Jul | L28: 0 | M28: 2.1 | N28: 0 | O28: 0
K29: Aug | L29: 0 | M29: 0.1 | N29: 0 | O29: 0
K30: Sep | L30: 0 | M30: 0.5 | N30: 0 | O30: 0
K31: Oct | L31: 0 | M31: 0.1 | N31: 0 | O31: 0
K32: Nov | L32: 0 | M32: 0.7 | N32: 0 | O32: 0.1
K33: Dec | L33: 0 | M33: 0.6 | N33: 0 | O33: 0
K34: Annual | L34: =AVERAGE(L22:L33) -> 0.008333333333 | M34: =MAX(M22:M33) -> 3.8 | N34: =AVERAGE(N22:N33) -> 0 | O34: =MAX(O22:O33) -> 0.1
J36: =+A6 -> 2023 | K36: mg/Nm3 | L36: Monthly 1/2 hourly mean | M36: Monthly 1/2 hourly maximum | N36: Monthly daily mean | O36: Monthly daily maximum
J37: A3 | K37: Jan
K38: Feb
K39: Mar
K40: Apr
K41: May
K42: Jun
K43: Jul
K44: Aug
K45: Sep
K46: Oct
K47: Nov
A48: Comments : | K48: Dec
A49: An indicated ELV value of zero in the table above means that no ammonia limit is/was set in the permit. | K49: Annual | L49: =AVERAGE(L37:L48) ->  | M49: =MAX(M37:M48) -> 0 | N49: =AVERAGE(N37:N48) ->  | O49: =MAX(O37:O48) -> 0
J51: =+A6 -> 2023 | K51: mg/Nm3 | L51: Monthly 1/2 hourly mean | M51: Monthly 1/2 hourly maximum | N51: Monthly daily mean | O51: Monthly daily maximum
J52: A4 | K52: Jan
K53: Feb
K54: Mar
K55: Apr
K56: May
K57: Jun
K58: Jul
K59: Aug
K60: Sep
K61: Oct
K62: Nov
K63: Dec
K64: Annual | L64: =AVERAGE(L52:L63) ->  | M64: =MAX(M52:M63) -> 0 | N64: =AVERAGE(N52:N63) ->  | O64: =MAX(O52:O63) -> 0
J66: =+A6 -> 2023 | K66: mg/Nm3 | L66: Monthly 1/2 hourly mean | M66: Monthly 1/2 hourly maximum | N66: Monthly daily mean | O66: Monthly daily maximum
J67: A5 | K67: Jan
K68: Feb
K69: Mar
K70: Apr
K71: May
K72: Jun
K73: Jul
K74: Aug
K75: Sep
K76: Oct
K77: Nov
K78: Dec
K79: Annual | L79: =AVERAGE(L67:L78) ->  | M79: =MAX(M67:M78) -> 0 | N79: =AVERAGE(N67:N78) ->  | O79: =MAX(O67:O78) -> 0
